{"text_format":"1","workbook":"xlsx","n_sheets":6,"sheets":["Step 1 - Make Selections","Step 2 - Manage Applications","Step 3 - Review Order","Range Reference","Article Reference","Coverage Reference"],"not_rendered":{"charts":0,"images":4,"macros":1,"external_links":0,"defined_names":4,"comments":0,"pivot_tables":0},"unopened":[],"bounds":{"document_bytes":16777216,"sheet_cells":100000,"rows_first":2000,"rows_last":500,"rows_between":2000,"halvings":0,"cell_chars":16384,"cell_head_chars":4096},"cells_cut":0,"cells_raw":0,"read":"whole","date_system":"1900"}

{"sheet":"Step 1 - Make Selections","index":0,"n_rows":123,"n_cols":11,"rows_kept":123,"cut":false,"hidden":false,"merged":[[122,0,131,7],[117,8,117,10],[85,0,85,4],[117,0,117,4],[20,6,20,7],[20,3,20,5],[22,1,22,2],[22,3,22,5],[22,6,22,7],[21,3,21,5],[19,0,20,0],[19,1,20,2],[19,6,19,7],[15,0,15,2],[21,1,21,2],[16,1,16,2],[85,8,85,10],[17,6,17,7],[16,6,16,7],[15,6,15,7],[18,3,18,5],[17,3,17,5],[16,3,16,5],[15,3,15,5],[18,6,18,7],[21,6,21,7],[19,3,19,5],[18,1,18,2],[17,1,17,2]]}
[]
[]
[]
[]
[]
[]
[]
[]
[]
[]
[]
[]
[]
[]
[]
["EOP Rebate Calculator",null,null,"TOTAL EOP PURCHASE",null,null,{"$f":"I86+I118","v":0}]
["Rebate Program Locked",{"$f":"IF((F118+F86)>=2000,\"October Rebate Locked\",IF((I86+I118)>=2000,\"Nov-Dec Rebate Locked\",\"Rebate Level Not Achieved\"))","v":"Rebate Level Not Achieved"},null,"$ To Reach Rebate Level 1",null,null,{"$f":"IF(2000-$G$16<=0,\"Reached\",3000-$G$16)","v":3000}]
["Rebate Level",{"$f":"IF('Range Reference'!G7=0,0,'Range Reference'!G7)","v":0},null,"$ To Reach Rebate Level 2",null,null,{"$f":"IF(10000-$G$16<=0,\"Reached\",10000-$G$16)","v":10000}]
["EOP Cube Kicker",{"$f":"IF((E26+G26+G31+E31+E36+G36+G39+E39+E42+G42+G46+E46+E49+G49+E52+G52+G55+E55+E59+G59+G63+E63)>=1,0.02,0)","v":0},null,"$ To Reach Rebate Level 3",null,null,{"$f":"IF(18000-$G$16<=0,\"Reached\",18000-$G$16)","v":18000}]
["TOTAL REBATE",{"$f":"B18+B19","v":0},null,"$ To Reach Rebate Level 4",null,null,{"$f":"IF(35000-$G$16<=0,\"Reached\",35000-$G$16)","v":35000}]
[null,null,null,"Rebate $ on Total Purchases",null,null,{"$f":"IF(B18=0,\"Not Achieved\",B20*G16)","v":"Not Achieved"}]
["Insignia & Honor Intrnsic Rebate",{"$f":"IF('Range Reference'!R2+'Range Reference'!R4=0,\"Not Achieved\",'Range Reference'!R2+'Range Reference'!R4)","v":"Not Achieved"},null,"Additional Insignia & Honor Rebate",null,null,{"$f":"IF('Range Reference'!R7=0,\"Not Achieved\",'Range Reference'!R7)","v":"Not Achieved"}]
["Season Year Rebate Lock",{"$f":"IF(G20=\"Reached\",\"10% Full Year Rebate Locked\",\"Not Achieved\")","v":"Not Achieved"},null,"TOTAL EOP Rebate",null,null,{"$f":"IF(G22=\"Not Achieved\",G16*B20,(G16*B20)+G22)","v":0}]
[]
["Qualifying Agency Products","Package","Article No.","Agency Price","Oct Order (Cases)","Oct Sales","Nov-Dec Order (Cases)","Nov-Dec Sales","Acres Low","Acres Mid","Acres High"]
["Multi-course Fairway Cube","Cube",59014559,34526,0,{"$f":"D26*E26","v":0},0,{"$f":"G26*D26","v":0},{"$f":"IF(ISNA(VLOOKUP($C26,'Coverage Reference'!$B$4:$G$17,4,FALSE))=TRUE,0,VLOOKUP($C26,'Coverage Reference'!$B$4:$G$17,4,FALSE)*(E26+G26))","v":0},{"$f":"IF(ISNA(VLOOKUP($C26,'Coverage Reference'!$B$4:$G$17,5,FALSE))=TRUE,0,VLOOKUP($C26,'Coverage Reference'!$B$4:$G$17,5,FALSE)*(E26+G26))","v":0},{"$f":"IF(ISNA(VLOOKUP($C26,'Coverage Reference'!$B$4:$G$17,6,FALSE))=TRUE,0,VLOOKUP($C26,'Coverage Reference'!$B$4:$G$17,6,FALSE)*(E26+G26))","v":0}]
[{"$f":"VLOOKUP($C27,'Article Reference'!$A$2:$C$46,2,FALSE)","v":"Xzemplar™ Fungicide"},{"$f":"VLOOKUP($C27,'Article Reference'!$A$2:$C$46,3,FALSE)","v":"2x 114 oz"},59013833,null,{"$f":"E26*5","v":0},null,{"$f":"G26*5","v":0},null,{"$f":"IF(ISNA(VLOOKUP($C27,'Coverage Reference'!$B$4:$G$17,4,FALSE))=TRUE,0,VLOOKUP($C27,'Coverage Reference'!$B$4:$G$17,4,FALSE)*(E27+G27))","v":0},{"$f":"IF(ISNA(VLOOKUP($C27,'Coverage Reference'!$B$4:$G$17,5,FALSE))=TRUE,0,VLOOKUP($C27,'Coverage Reference'!$B$4:$G$17,5,FALSE)*(E27+G27))","v":0},{"$f":"IF(ISNA(VLOOKUP($C27,'Coverage Reference'!$B$4:$G$17,6,FALSE))=TRUE,0,VLOOKUP($C27,'Coverage Reference'!$B$4:$G$17,6,FALSE)*(E27+G27))","v":0}]
[{"$f":"VLOOKUP($C28,'Article Reference'!$A$2:$C$46,2,FALSE)","v":"Emerald® Fungicide"},{"$f":"VLOOKUP($C28,'Article Reference'!$A$2:$C$46,3,FALSE)","v":"50 x 0.49 lb"},59012825,null,{"$f":"E26*1","v":0},null,{"$f":"G26*1","v":0},null,{"$f":"IF(ISNA(VLOOKUP($C28,'Coverage Reference'!$B$4:$G$17,4,FALSE))=TRUE,0,VLOOKUP($C28,'Coverage Reference'!$B$4:$G$17,4,FALSE)*(E28+G28))","v":0},{"$f":"IF(ISNA(VLOOKUP($C28,'Coverage Reference'!$B$4:$G$17,5,FALSE))=TRUE,0,VLOOKUP($C28,'Coverage Reference'!$B$4:$G$17,5,FALSE)*(E28+G28))","v":0},{"$f":"IF(ISNA(VLOOKUP($C28,'Coverage Reference'!$B$4:$G$17,6,FALSE))=TRUE,0,VLOOKUP($C28,'Coverage Reference'!$B$4:$G$17,6,FALSE)*(E28+G28))","v":0}]
[{"$f":"VLOOKUP($C29,'Article Reference'!$A$2:$C$46,2,FALSE)","v":"Emerald® Fungicide"},{"$f":"VLOOKUP($C29,'Article Reference'!$A$2:$C$46,3,FALSE)","v":"10 x 0.49 lb"},59021463,null,{"$f":"E26*1","v":0},null,{"$f":"G26*1","v":0},null,{"$f":"IF(ISNA(VLOOKUP($C29,'Coverage Reference'!$B$4:$G$17,4,FALSE))=TRUE,0,VLOOKUP($C29,'Coverage Reference'!$B$4:$G$17,4,FALSE)*(E29+G29))","v":0},{"$f":"IF(ISNA(VLOOKUP($C29,'Coverage Reference'!$B$4:$G$17,5,FALSE))=TRUE,0,VLOOKUP($C29,'Coverage Reference'!$B$4:$G$17,5,FALSE)*(E29+G29))","v":0},{"$f":"IF(ISNA(VLOOKUP($C29,'Coverage Reference'!$B$4:$G$17,6,FALSE))=TRUE,0,VLOOKUP($C29,'Coverage Reference'!$B$4:$G$17,6,FALSE)*(E29+G29))","v":0}]
[{"$f":"VLOOKUP($C30,'Article Reference'!$A$2:$C$46,2,FALSE)","v":"Honor® Intrinsic™ Brand Fungicide"},{"$f":"VLOOKUP($C30,'Article Reference'!$A$2:$C$46,3,FALSE)","v":"1 x 36 lb"},59012885,null,{"$f":"E26*3","v":0},null,{"$f":"G26*3","v":0},null,{"$f":"IF(ISNA(VLOOKUP($C30,'Coverage Reference'!$B$4:$G$17,4,FALSE))=TRUE,0,VLOOKUP($C30,'Coverage Reference'!$B$4:$G$17,4,FALSE)*(E30+G30))","v":0},{"$f":"IF(ISNA(VLOOKUP($C30,'Coverage Reference'!$B$4:$G$17,5,FALSE))=TRUE,0,VLOOKUP($C30,'Coverage Reference'!$B$4:$G$17,5,FALSE)*(E30+G30))","v":0},{"$f":"IF(ISNA(VLOOKUP($C30,'Coverage Reference'!$B$4:$G$17,6,FALSE))=TRUE,0,VLOOKUP($C30,'Coverage Reference'!$B$4:$G$17,6,FALSE)*(E30+G30))","v":0}]
["Championship Conditions Cube","Cube",59017724,28642,0,{"$f":"D31*E31","v":0},0,{"$f":"G31*D31","v":0},{"$f":"IF(ISNA(VLOOKUP($C31,'Coverage Reference'!$B$4:$G$17,4,FALSE))=TRUE,0,VLOOKUP($C31,'Coverage Reference'!$B$4:$G$17,4,FALSE)*(E31+G31))","v":0},{"$f":"IF(ISNA(VLOOKUP($C31,'Coverage Reference'!$B$4:$G$17,5,FALSE))=TRUE,0,VLOOKUP($C31,'Coverage Reference'!$B$4:$G$17,5,FALSE)*(E31+G31))","v":0},{"$f":"IF(ISNA(VLOOKUP($C31,'Coverage Reference'!$B$4:$G$17,6,FALSE))=TRUE,0,VLOOKUP($C31,'Coverage Reference'!$B$4:$G$17,6,FALSE)*(E31+G31))","v":0}]
[{"$f":"VLOOKUP($C32,'Article Reference'!$A$2:$C$46,2,FALSE)","v":"Lexicon® Intrinsic™ Brand Fungicide"},{"$f":"VLOOKUP($C32,'Article Reference'!$A$2:$C$46,3,FALSE)","v":"4x 21 oz"},59013840,null,{"$f":"3*E31","v":0},null,{"$f":"3*G31","v":0},null,{"$f":"IF(ISNA(VLOOKUP($C32,'Coverage Reference'!$B$4:$G$17,4,FALSE))=TRUE,0,VLOOKUP($C32,'Coverage Reference'!$B$4:$G$17,4,FALSE)*(E32+G32))","v":0},{"$f":"IF(ISNA(VLOOKUP($C32,'Coverage Reference'!$B$4:$G$17,5,FALSE))=TRUE,0,VLOOKUP($C32,'Coverage Reference'!$B$4:$G$17,5,FALSE)*(E32+G32))","v":0},{"$f":"IF(ISNA(VLOOKUP($C32,'Coverage Reference'!$B$4:$G$17,6,FALSE))=TRUE,0,VLOOKUP($C32,'Coverage Reference'!$B$4:$G$17,6,FALSE)*(E32+G32))","v":0}]
[{"$f":"VLOOKUP($C33,'Article Reference'!$A$2:$C$46,2,FALSE)","v":"Xzemplar™ Fungicide"},{"$f":"VLOOKUP($C33,'Article Reference'!$A$2:$C$46,3,FALSE)","v":"2x 114 oz"},59013833,null,{"$f":"2*E31","v":0},null,{"$f":"2*G31","v":0},null,{"$f":"IF(ISNA(VLOOKUP($C33,'Coverage Reference'!$B$4:$G$17,4,FALSE))=TRUE,0,VLOOKUP($C33,'Coverage Reference'!$B$4:$G$17,4,FALSE)*(E33+G33))","v":0},{"$f":"IF(ISNA(VLOOKUP($C33,'Coverage Reference'!$B$4:$G$17,5,FALSE))=TRUE,0,VLOOKUP($C33,'Coverage Reference'!$B$4:$G$17,5,FALSE)*(E33+G33))","v":0},{"$f":"IF(ISNA(VLOOKUP($C33,'Coverage Reference'!$B$4:$G$17,6,FALSE))=TRUE,0,VLOOKUP($C33,'Coverage Reference'!$B$4:$G$17,6,FALSE)*(E33+G33))","v":0}]
[{"$f":"VLOOKUP($C34,'Article Reference'!$A$2:$C$46,2,FALSE)","v":"Emerald® Fungicide"},{"$f":"VLOOKUP($C34,'Article Reference'!$A$2:$C$46,3,FALSE)","v":"50 x 0.49 lb"},59012825,null,{"$f":"1*E31","v":0},null,{"$f":"1*G31","v":0},null,{"$f":"IF(ISNA(VLOOKUP($C34,'Coverage Reference'!$B$4:$G$17,4,FALSE))=TRUE,0,VLOOKUP($C34,'Coverage Reference'!$B$4:$G$17,4,FALSE)*(E34+G34))","v":0},{"$f":"IF(ISNA(VLOOKUP($C34,'Coverage Reference'!$B$4:$G$17,5,FALSE))=TRUE,0,VLOOKUP($C34,'Coverage Reference'!$B$4:$G$17,5,FALSE)*(E34+G34))","v":0},{"$f":"IF(ISNA(VLOOKUP($C34,'Coverage Reference'!$B$4:$G$17,6,FALSE))=TRUE,0,VLOOKUP($C34,'Coverage Reference'!$B$4:$G$17,6,FALSE)*(E34+G34))","v":0}]
[{"$f":"VLOOKUP($C35,'Article Reference'!$A$2:$C$46,2,FALSE)","v":"Honor® Intrinsic™ Brand Fungicide"},{"$f":"VLOOKUP($C35,'Article Reference'!$A$2:$C$46,3,FALSE)","v":"1 x 36 lb"},59012885,null,{"$f":"3*E31","v":0},null,{"$f":"3*G31","v":0},null,{"$f":"IF(ISNA(VLOOKUP($C35,'Coverage Reference'!$B$4:$G$17,4,FALSE))=TRUE,0,VLOOKUP($C35,'Coverage Reference'!$B$4:$G$17,4,FALSE)*(E35+G35))","v":0},{"$f":"IF(ISNA(VLOOKUP($C35,'Coverage Reference'!$B$4:$G$17,5,FALSE))=TRUE,0,VLOOKUP($C35,'Coverage Reference'!$B$4:$G$17,5,FALSE)*(E35+G35))","v":0},{"$f":"IF(ISNA(VLOOKUP($C35,'Coverage Reference'!$B$4:$G$17,6,FALSE))=TRUE,0,VLOOKUP($C35,'Coverage Reference'!$B$4:$G$17,6,FALSE)*(E35+G35))","v":0}]
["Fairway Defense Cube","Cube",59016551,15425,0,{"$f":"D36*E36","v":0},0,{"$f":"G36*D36","v":0},{"$f":"IF(ISNA(VLOOKUP($C36,'Coverage Reference'!$B$4:$G$17,4,FALSE))=TRUE,0,VLOOKUP($C36,'Coverage Reference'!$B$4:$G$17,4,FALSE)*(E36+G36))","v":0},{"$f":"IF(ISNA(VLOOKUP($C36,'Coverage Reference'!$B$4:$G$17,5,FALSE))=TRUE,0,VLOOKUP($C36,'Coverage Reference'!$B$4:$G$17,5,FALSE)*(E36+G36))","v":0},{"$f":"IF(ISNA(VLOOKUP($C36,'Coverage Reference'!$B$4:$G$17,6,FALSE))=TRUE,0,VLOOKUP($C36,'Coverage Reference'!$B$4:$G$17,6,FALSE)*(E36+G36))","v":0}]
[{"$f":"VLOOKUP($C37,'Article Reference'!$A$2:$C$46,2,FALSE)","v":"Emerald® Fungicide"},{"$f":"VLOOKUP($C37,'Article Reference'!$A$2:$C$46,3,FALSE)","v":"10 x 0.49 lb"},59021463,null,{"$f":"E36*3","v":0},null,{"$f":"G36*3","v":0},null,{"$f":"IF(ISNA(VLOOKUP($C37,'Coverage Reference'!$B$4:$G$17,4,FALSE))=TRUE,0,VLOOKUP($C37,'Coverage Reference'!$B$4:$G$17,4,FALSE)*(E37+G37))","v":0},{"$f":"IF(ISNA(VLOOKUP($C37,'Coverage Reference'!$B$4:$G$17,5,FALSE))=TRUE,0,VLOOKUP($C37,'Coverage Reference'!$B$4:$G$17,5,FALSE)*(E37+G37))","v":0},{"$f":"IF(ISNA(VLOOKUP($C37,'Coverage Reference'!$B$4:$G$17,6,FALSE))=TRUE,0,VLOOKUP($C37,'Coverage Reference'!$B$4:$G$17,6,FALSE)*(E37+G37))","v":0}]
[{"$f":"VLOOKUP($C38,'Article Reference'!$A$2:$C$46,2,FALSE)","v":"Honor® Intrinsic™ Brand Fungicide"},{"$f":"VLOOKUP($C38,'Article Reference'!$A$2:$C$46,3,FALSE)","v":"1 x 36 lb"},59012885,null,{"$f":"E36*3","v":0},null,{"$f":"G36*3","v":0},null,{"$f":"IF(ISNA(VLOOKUP($C38,'Coverage Reference'!$B$4:$G$17,4,FALSE))=TRUE,0,VLOOKUP($C38,'Coverage Reference'!$B$4:$G$17,4,FALSE)*(E38+G38))","v":0},{"$f":"IF(ISNA(VLOOKUP($C38,'Coverage Reference'!$B$4:$G$17,5,FALSE))=TRUE,0,VLOOKUP($C38,'Coverage Reference'!$B$4:$G$17,5,FALSE)*(E38+G38))","v":0},{"$f":"IF(ISNA(VLOOKUP($C38,'Coverage Reference'!$B$4:$G$17,6,FALSE))=TRUE,0,VLOOKUP($C38,'Coverage Reference'!$B$4:$G$17,6,FALSE)*(E38+G38))","v":0}]
["Dollar Spot Foundation Cube","Cube",59014560,14028,0,0,0,0,{"$f":"IF(ISNA(VLOOKUP($C39,'Coverage Reference'!$B$4:$G$17,4,FALSE))=TRUE,0,VLOOKUP($C39,'Coverage Reference'!$B$4:$G$17,4,FALSE)*(E39+G39))","v":0},{"$f":"IF(ISNA(VLOOKUP($C39,'Coverage Reference'!$B$4:$G$17,5,FALSE))=TRUE,0,VLOOKUP($C39,'Coverage Reference'!$B$4:$G$17,5,FALSE)*(E39+G39))","v":0},{"$f":"IF(ISNA(VLOOKUP($C39,'Coverage Reference'!$B$4:$G$17,6,FALSE))=TRUE,0,VLOOKUP($C39,'Coverage Reference'!$B$4:$G$17,6,FALSE)*(E39+G39))","v":0}]
[{"$f":"VLOOKUP($C40,'Article Reference'!$A$2:$C$46,2,FALSE)","v":"Xzemplar™ Fungicide"},{"$f":"VLOOKUP($C40,'Article Reference'!$A$2:$C$46,3,FALSE)","v":"2x 114 oz"},59013833,null,{"$f":"E39*3","v":0},null,{"$f":"G39*3","v":0},null,{"$f":"IF(ISNA(VLOOKUP($C40,'Coverage Reference'!$B$4:$G$17,4,FALSE))=TRUE,0,VLOOKUP($C40,'Coverage Reference'!$B$4:$G$17,4,FALSE)*(E40+G40))","v":0},{"$f":"IF(ISNA(VLOOKUP($C40,'Coverage Reference'!$B$4:$G$17,5,FALSE))=TRUE,0,VLOOKUP($C40,'Coverage Reference'!$B$4:$G$17,5,FALSE)*(E40+G40))","v":0},{"$f":"IF(ISNA(VLOOKUP($C40,'Coverage Reference'!$B$4:$G$17,6,FALSE))=TRUE,0,VLOOKUP($C40,'Coverage Reference'!$B$4:$G$17,6,FALSE)*(E40+G40))","v":0}]
[{"$f":"VLOOKUP($C41,'Article Reference'!$A$2:$C$46,2,FALSE)","v":"Emerald® Fungicide"},{"$f":"VLOOKUP($C41,'Article Reference'!$A$2:$C$46,3,FALSE)","v":"10 x 0.49 lb"},59021463,null,{"$f":"E39*3","v":0},null,{"$f":"G39*3","v":0},null,{"$f":"IF(ISNA(VLOOKUP($C41,'Coverage Reference'!$B$4:$G$17,4,FALSE))=TRUE,0,VLOOKUP($C41,'Coverage Reference'!$B$4:$G$17,4,FALSE)*(E41+G41))","v":0},{"$f":"IF(ISNA(VLOOKUP($C41,'Coverage Reference'!$B$4:$G$17,5,FALSE))=TRUE,0,VLOOKUP($C41,'Coverage Reference'!$B$4:$G$17,5,FALSE)*(E41+G41))","v":0},{"$f":"IF(ISNA(VLOOKUP($C41,'Coverage Reference'!$B$4:$G$17,6,FALSE))=TRUE,0,VLOOKUP($C41,'Coverage Reference'!$B$4:$G$17,6,FALSE)*(E41+G41))","v":0}]
["Greens Protector Cube","Cube",59017725,9479,0,{"$f":"D42*E42","v":0},0,{"$f":"G42*D42","v":0},{"$f":"IF(ISNA(VLOOKUP($C42,'Coverage Reference'!$B$4:$G$17,4,FALSE))=TRUE,0,VLOOKUP($C42,'Coverage Reference'!$B$4:$G$17,4,FALSE)*(E42+G42))","v":0},{"$f":"IF(ISNA(VLOOKUP($C42,'Coverage Reference'!$B$4:$G$17,5,FALSE))=TRUE,0,VLOOKUP($C42,'Coverage Reference'!$B$4:$G$17,5,FALSE)*(E42+G42))","v":0},{"$f":"IF(ISNA(VLOOKUP($C42,'Coverage Reference'!$B$4:$G$17,6,FALSE))=TRUE,0,VLOOKUP($C42,'Coverage Reference'!$B$4:$G$17,6,FALSE)*(E42+G42))","v":0}]
[{"$f":"VLOOKUP($C43,'Article Reference'!$A$2:$C$46,2,FALSE)","v":"Lexicon® Intrinsic™ Brand Fungicide"},{"$f":"VLOOKUP($C43,'Article Reference'!$A$2:$C$46,3,FALSE)","v":"4x 21 oz"},59013840,null,{"$f":"E42*3","v":0},null,{"$f":"G42*3","v":0},null,{"$f":"IF(ISNA(VLOOKUP($C43,'Coverage Reference'!$B$4:$G$17,4,FALSE))=TRUE,0,VLOOKUP($C43,'Coverage Reference'!$B$4:$G$17,4,FALSE)*(E43+G43))","v":0},{"$f":"IF(ISNA(VLOOKUP($C43,'Coverage Reference'!$B$4:$G$17,5,FALSE))=TRUE,0,VLOOKUP($C43,'Coverage Reference'!$B$4:$G$17,5,FALSE)*(E43+G43))","v":0},{"$f":"IF(ISNA(VLOOKUP($C43,'Coverage Reference'!$B$4:$G$17,6,FALSE))=TRUE,0,VLOOKUP($C43,'Coverage Reference'!$B$4:$G$17,6,FALSE)*(E43+G43))","v":0}]
[{"$f":"VLOOKUP($C44,'Article Reference'!$A$2:$C$46,2,FALSE)","v":"Xzemplar™Fungicide"},{"$f":"VLOOKUP($C44,'Article Reference'!$A$2:$C$46,3,FALSE)","v":"4 x 11.4 oz"},59014120,null,{"$f":"E42*2","v":0},null,{"$f":"G42*2","v":0},null,{"$f":"IF(ISNA(VLOOKUP($C44,'Coverage Reference'!$B$4:$G$17,4,FALSE))=TRUE,0,VLOOKUP($C44,'Coverage Reference'!$B$4:$G$17,4,FALSE)*(E44+G44))","v":0},{"$f":"IF(ISNA(VLOOKUP($C44,'Coverage Reference'!$B$4:$G$17,5,FALSE))=TRUE,0,VLOOKUP($C44,'Coverage Reference'!$B$4:$G$17,5,FALSE)*(E44+G44))","v":0},{"$f":"IF(ISNA(VLOOKUP($C44,'Coverage Reference'!$B$4:$G$17,6,FALSE))=TRUE,0,VLOOKUP($C44,'Coverage Reference'!$B$4:$G$17,6,FALSE)*(E44+G44))","v":0}]
[{"$f":"VLOOKUP($C45,'Article Reference'!$A$2:$C$46,2,FALSE)","v":"Honor® Intrinsic™ Brand Fungicide"},{"$f":"VLOOKUP($C45,'Article Reference'!$A$2:$C$46,3,FALSE)","v":"6 x 3 lb"},59012350,null,{"$f":"E42*1","v":0},null,{"$f":"G42*1","v":0},null,{"$f":"IF(ISNA(VLOOKUP($C45,'Coverage Reference'!$B$4:$G$17,4,FALSE))=TRUE,0,VLOOKUP($C45,'Coverage Reference'!$B$4:$G$17,4,FALSE)*(E45+G45))","v":0},{"$f":"IF(ISNA(VLOOKUP($C45,'Coverage Reference'!$B$4:$G$17,5,FALSE))=TRUE,0,VLOOKUP($C45,'Coverage Reference'!$B$4:$G$17,5,FALSE)*(E45+G45))","v":0},{"$f":"IF(ISNA(VLOOKUP($C45,'Coverage Reference'!$B$4:$G$17,6,FALSE))=TRUE,0,VLOOKUP($C45,'Coverage Reference'!$B$4:$G$17,6,FALSE)*(E45+G45))","v":0}]
["Plant Health Cube","Cube",59014232,9133,0,{"$f":"D46*E46","v":0},0,{"$f":"G46*D46","v":0},{"$f":"IF(ISNA(VLOOKUP($C46,'Coverage Reference'!$B$4:$G$17,4,FALSE))=TRUE,0,VLOOKUP($C46,'Coverage Reference'!$B$4:$G$17,4,FALSE)*(E46+G46))","v":0},{"$f":"IF(ISNA(VLOOKUP($C46,'Coverage Reference'!$B$4:$G$17,5,FALSE))=TRUE,0,VLOOKUP($C46,'Coverage Reference'!$B$4:$G$17,5,FALSE)*(E46+G46))","v":0},{"$f":"IF(ISNA(VLOOKUP($C46,'Coverage Reference'!$B$4:$G$17,6,FALSE))=TRUE,0,VLOOKUP($C46,'Coverage Reference'!$B$4:$G$17,6,FALSE)*(E46+G46))","v":0}]
[{"$f":"VLOOKUP($C47,'Article Reference'!$A$2:$C$46,2,FALSE)","v":"Honor® Intrinsic™ Brand Fungicide"},{"$f":"VLOOKUP($C47,'Article Reference'!$A$2:$C$46,3,FALSE)","v":"1 x 36 lb"},59012885,null,{"$f":"1*E46","v":0},null,{"$f":"1*G46","v":0},null,{"$f":"IF(ISNA(VLOOKUP($C47,'Coverage Reference'!$B$4:$G$17,4,FALSE))=TRUE,0,VLOOKUP($C47,'Coverage Reference'!$B$4:$G$17,4,FALSE)*(E47+G47))","v":0},{"$f":"IF(ISNA(VLOOKUP($C47,'Coverage Reference'!$B$4:$G$17,5,FALSE))=TRUE,0,VLOOKUP($C47,'Coverage Reference'!$B$4:$G$17,5,FALSE)*(E47+G47))","v":0},{"$f":"IF(ISNA(VLOOKUP($C47,'Coverage Reference'!$B$4:$G$17,6,FALSE))=TRUE,0,VLOOKUP($C47,'Coverage Reference'!$B$4:$G$17,6,FALSE)*(E47+G47))","v":0}]
[{"$f":"VLOOKUP($C48,'Article Reference'!$A$2:$C$46,2,FALSE)","v":"Lexicon® Intrinsic™ Brand Fungicide"},{"$f":"VLOOKUP($C48,'Article Reference'!$A$2:$C$46,3,FALSE)","v":"4x 21 oz"},59013840,null,{"$f":"3*E46","v":0},null,{"$f":"3*G46","v":0},null,{"$f":"IF(ISNA(VLOOKUP($C48,'Coverage Reference'!$B$4:$G$17,4,FALSE))=TRUE,0,VLOOKUP($C48,'Coverage Reference'!$B$4:$G$17,4,FALSE)*(E48+G48))","v":0},{"$f":"IF(ISNA(VLOOKUP($C48,'Coverage Reference'!$B$4:$G$17,5,FALSE))=TRUE,0,VLOOKUP($C48,'Coverage Reference'!$B$4:$G$17,5,FALSE)*(E48+G48))","v":0},{"$f":"IF(ISNA(VLOOKUP($C48,'Coverage Reference'!$B$4:$G$17,6,FALSE))=TRUE,0,VLOOKUP($C48,'Coverage Reference'!$B$4:$G$17,6,FALSE)*(E48+G48))","v":0}]
["New Innovation Cube","Cube",59014244,7788,0,0,0,0,{"$f":"IF(ISNA(VLOOKUP($C49,'Coverage Reference'!$B$4:$G$17,4,FALSE))=TRUE,0,VLOOKUP($C49,'Coverage Reference'!$B$4:$G$17,4,FALSE)*(E49+G49))","v":0},{"$f":"IF(ISNA(VLOOKUP($C49,'Coverage Reference'!$B$4:$G$17,5,FALSE))=TRUE,0,VLOOKUP($C49,'Coverage Reference'!$B$4:$G$17,5,FALSE)*(E49+G49))","v":0},{"$f":"IF(ISNA(VLOOKUP($C49,'Coverage Reference'!$B$4:$G$17,6,FALSE))=TRUE,0,VLOOKUP($C49,'Coverage Reference'!$B$4:$G$17,6,FALSE)*(E49+G49))","v":0}]
[{"$f":"VLOOKUP($C50,'Article Reference'!$A$2:$C$46,2,FALSE)","v":"Xzemplar™Fungicide"},{"$f":"VLOOKUP($C50,'Article Reference'!$A$2:$C$46,3,FALSE)","v":"4 x 11.4 oz"},59014120,null,{"$f":"3*E49","v":0},null,{"$f":"3*G49","v":0},null,{"$f":"IF(ISNA(VLOOKUP($C50,'Coverage Reference'!$B$4:$G$17,4,FALSE))=TRUE,0,VLOOKUP($C50,'Coverage Reference'!$B$4:$G$17,4,FALSE)*(E50+G50))","v":0},{"$f":"IF(ISNA(VLOOKUP($C50,'Coverage Reference'!$B$4:$G$17,5,FALSE))=TRUE,0,VLOOKUP($C50,'Coverage Reference'!$B$4:$G$17,5,FALSE)*(E50+G50))","v":0},{"$f":"IF(ISNA(VLOOKUP($C50,'Coverage Reference'!$B$4:$G$17,6,FALSE))=TRUE,0,VLOOKUP($C50,'Coverage Reference'!$B$4:$G$17,6,FALSE)*(E50+G50))","v":0}]
[{"$f":"VLOOKUP($C51,'Article Reference'!$A$2:$C$46,2,FALSE)","v":"Lexicon® Intrinsic™ Brand Fungicide"},{"$f":"VLOOKUP($C51,'Article Reference'!$A$2:$C$46,3,FALSE)","v":"4x 21 oz"},59013840,null,{"$f":"3*E49","v":0},null,{"$f":"3*G49","v":0},null,{"$f":"IF(ISNA(VLOOKUP($C51,'Coverage Reference'!$B$4:$G$17,4,FALSE))=TRUE,0,VLOOKUP($C51,'Coverage Reference'!$B$4:$G$17,4,FALSE)*(E51+G51))","v":0},{"$f":"IF(ISNA(VLOOKUP($C51,'Coverage Reference'!$B$4:$G$17,5,FALSE))=TRUE,0,VLOOKUP($C51,'Coverage Reference'!$B$4:$G$17,5,FALSE)*(E51+G51))","v":0},{"$f":"IF(ISNA(VLOOKUP($C51,'Coverage Reference'!$B$4:$G$17,6,FALSE))=TRUE,0,VLOOKUP($C51,'Coverage Reference'!$B$4:$G$17,6,FALSE)*(E51+G51))","v":0}]
["Fairway Building Block Cube","Cube",59014398,6312,0,0,0,0,{"$f":"IF(ISNA(VLOOKUP($C52,'Coverage Reference'!$B$4:$G$17,4,FALSE))=TRUE,0,VLOOKUP($C52,'Coverage Reference'!$B$4:$G$17,4,FALSE)*(E52+G52))","v":0},{"$f":"IF(ISNA(VLOOKUP($C52,'Coverage Reference'!$B$4:$G$17,5,FALSE))=TRUE,0,VLOOKUP($C52,'Coverage Reference'!$B$4:$G$17,5,FALSE)*(E52+G52))","v":0},{"$f":"IF(ISNA(VLOOKUP($C52,'Coverage Reference'!$B$4:$G$17,6,FALSE))=TRUE,0,VLOOKUP($C52,'Coverage Reference'!$B$4:$G$17,6,FALSE)*(E52+G52))","v":0}]
[{"$f":"VLOOKUP($C53,'Article Reference'!$A$2:$C$46,2,FALSE)","v":"Xzemplar™ Fungicide"},{"$f":"VLOOKUP($C53,'Article Reference'!$A$2:$C$46,3,FALSE)","v":"2x 114 oz"},59013833,null,{"$f":"1*E52","v":0},null,{"$f":"1*G52","v":0},null,{"$f":"IF(ISNA(VLOOKUP($C53,'Coverage Reference'!$B$4:$G$17,4,FALSE))=TRUE,0,VLOOKUP($C53,'Coverage Reference'!$B$4:$G$17,4,FALSE)*(E53+G53))","v":0},{"$f":"IF(ISNA(VLOOKUP($C53,'Coverage Reference'!$B$4:$G$17,5,FALSE))=TRUE,0,VLOOKUP($C53,'Coverage Reference'!$B$4:$G$17,5,FALSE)*(E53+G53))","v":0},{"$f":"IF(ISNA(VLOOKUP($C53,'Coverage Reference'!$B$4:$G$17,6,FALSE))=TRUE,0,VLOOKUP($C53,'Coverage Reference'!$B$4:$G$17,6,FALSE)*(E53+G53))","v":0}]
[{"$f":"VLOOKUP($C54,'Article Reference'!$A$2:$C$46,2,FALSE)","v":"Emerald® Fungicide"},{"$f":"VLOOKUP($C54,'Article Reference'!$A$2:$C$46,3,FALSE)","v":"10 x 0.49 lb"},59021463,null,{"$f":"2*E52","v":0},null,{"$f":"2*G52","v":0},null,{"$f":"IF(ISNA(VLOOKUP($C54,'Coverage Reference'!$B$4:$G$17,4,FALSE))=TRUE,0,VLOOKUP($C54,'Coverage Reference'!$B$4:$G$17,4,FALSE)*(E54+G54))","v":0},{"$f":"IF(ISNA(VLOOKUP($C54,'Coverage Reference'!$B$4:$G$17,5,FALSE))=TRUE,0,VLOOKUP($C54,'Coverage Reference'!$B$4:$G$17,5,FALSE)*(E54+G54))","v":0},{"$f":"IF(ISNA(VLOOKUP($C54,'Coverage Reference'!$B$4:$G$17,6,FALSE))=TRUE,0,VLOOKUP($C54,'Coverage Reference'!$B$4:$G$17,6,FALSE)*(E54+G54))","v":0}]
["Greens Foundation Cube","Cube",59014396,6191,0,0,0,0,{"$f":"IF(ISNA(VLOOKUP($C55,'Coverage Reference'!$B$4:$G$17,4,FALSE))=TRUE,0,VLOOKUP($C55,'Coverage Reference'!$B$4:$G$17,4,FALSE)*(E55+G55))","v":0},{"$f":"IF(ISNA(VLOOKUP($C55,'Coverage Reference'!$B$4:$G$17,5,FALSE))=TRUE,0,VLOOKUP($C55,'Coverage Reference'!$B$4:$G$17,5,FALSE)*(E55+G55))","v":0},{"$f":"IF(ISNA(VLOOKUP($C55,'Coverage Reference'!$B$4:$G$17,6,FALSE))=TRUE,0,VLOOKUP($C55,'Coverage Reference'!$B$4:$G$17,6,FALSE)*(E55+G55))","v":0}]
[{"$f":"VLOOKUP($C56,'Article Reference'!$A$2:$C$46,2,FALSE)","v":"Lexicon® Intrinsic™ Brand Fungicide"},{"$f":"VLOOKUP($C56,'Article Reference'!$A$2:$C$46,3,FALSE)","v":"4x 21 oz"},59013840,null,{"$f":"1*E55","v":0},null,{"$f":"1*G55","v":0},null,{"$f":"IF(ISNA(VLOOKUP($C56,'Coverage Reference'!$B$4:$G$17,4,FALSE))=TRUE,0,VLOOKUP($C56,'Coverage Reference'!$B$4:$G$17,4,FALSE)*(E56+G56))","v":0},{"$f":"IF(ISNA(VLOOKUP($C56,'Coverage Reference'!$B$4:$G$17,5,FALSE))=TRUE,0,VLOOKUP($C56,'Coverage Reference'!$B$4:$G$17,5,FALSE)*(E56+G56))","v":0},{"$f":"IF(ISNA(VLOOKUP($C56,'Coverage Reference'!$B$4:$G$17,6,FALSE))=TRUE,0,VLOOKUP($C56,'Coverage Reference'!$B$4:$G$17,6,FALSE)*(E56+G56))","v":0}]
[{"$f":"VLOOKUP($C57,'Article Reference'!$A$2:$C$46,2,FALSE)","v":"Insignia® SC Intrinsic™ Brand Fungicide"},{"$f":"VLOOKUP($C57,'Article Reference'!$A$2:$C$46,3,FALSE)","v":"4 x 30.5 fl oz"},59014134,null,{"$f":"2*E55","v":0},null,{"$f":"2*G55","v":0},null,{"$f":"IF(ISNA(VLOOKUP($C57,'Coverage Reference'!$B$4:$G$17,4,FALSE))=TRUE,0,VLOOKUP($C57,'Coverage Reference'!$B$4:$G$17,4,FALSE)*(E57+G57))","v":0},{"$f":"IF(ISNA(VLOOKUP($C57,'Coverage Reference'!$B$4:$G$17,5,FALSE))=TRUE,0,VLOOKUP($C57,'Coverage Reference'!$B$4:$G$17,5,FALSE)*(E57+G57))","v":0},{"$f":"IF(ISNA(VLOOKUP($C57,'Coverage Reference'!$B$4:$G$17,6,FALSE))=TRUE,0,VLOOKUP($C57,'Coverage Reference'!$B$4:$G$17,6,FALSE)*(E57+G57))","v":0}]
[{"$f":"VLOOKUP($C58,'Article Reference'!$A$2:$C$54,2,FALSE)","v":"Trinity Fungicide"},{"$f":"VLOOKUP($C58,'Article Reference'!$A$2:$C$54,3,FALSE)","v":"2x2.5gal"},59011038,null,{"$f":"1*E55","v":0},null,{"$f":"1*G55","v":0},null,{"$f":"IF(ISNA(VLOOKUP($C58,'Coverage Reference'!$B$4:$G$17,4,FALSE))=TRUE,0,VLOOKUP($C58,'Coverage Reference'!$B$4:$G$17,4,FALSE)*(E58+G58))","v":0},{"$f":"IF(ISNA(VLOOKUP($C58,'Coverage Reference'!$B$4:$G$17,5,FALSE))=TRUE,0,VLOOKUP($C58,'Coverage Reference'!$B$4:$G$17,5,FALSE)*(E58+G58))","v":0},{"$f":"IF(ISNA(VLOOKUP($C58,'Coverage Reference'!$B$4:$G$17,6,FALSE))=TRUE,0,VLOOKUP($C58,'Coverage Reference'!$B$4:$G$17,6,FALSE)*(E58+G58))","v":0}]
["Warm Season Zone Herbicide Cube","Cube",59017962,3610,0,{"$f":"D59*E59","v":0},0,{"$f":"G59*D59","v":0},{"$f":"IF(ISNA(VLOOKUP($C59,'Coverage Reference'!$B$4:$G$17,4,FALSE))=TRUE,0,VLOOKUP($C59,'Coverage Reference'!$B$4:$G$17,4,FALSE)*(E59+G59))","v":0},{"$f":"IF(ISNA(VLOOKUP($C59,'Coverage Reference'!$B$4:$G$17,5,FALSE))=TRUE,0,VLOOKUP($C59,'Coverage Reference'!$B$4:$G$17,5,FALSE)*(E59+G59))","v":0},{"$f":"IF(ISNA(VLOOKUP($C59,'Coverage Reference'!$B$4:$G$17,6,FALSE))=TRUE,0,VLOOKUP($C59,'Coverage Reference'!$B$4:$G$17,6,FALSE)*(E59+G59))","v":0}]
[{"$f":"VLOOKUP($C60,'Article Reference'!$A$2:$C$46,2,FALSE)","v":"Tower® Herbicide"},{"$f":"VLOOKUP($C60,'Article Reference'!$A$2:$C$46,3,FALSE)","v":"2 x 2.5 gal"},59014247,null,{"$f":"2*E59","v":0},null,{"$f":"2*G59","v":0},null,{"$f":"IF(ISNA(VLOOKUP($C60,'Coverage Reference'!$B$4:$G$17,4,FALSE))=TRUE,0,VLOOKUP($C60,'Coverage Reference'!$B$4:$G$17,4,FALSE)*(E60+G60))","v":0},{"$f":"IF(ISNA(VLOOKUP($C60,'Coverage Reference'!$B$4:$G$17,5,FALSE))=TRUE,0,VLOOKUP($C60,'Coverage Reference'!$B$4:$G$17,5,FALSE)*(E60+G60))","v":0},{"$f":"IF(ISNA(VLOOKUP($C60,'Coverage Reference'!$B$4:$G$17,6,FALSE))=TRUE,0,VLOOKUP($C60,'Coverage Reference'!$B$4:$G$17,6,FALSE)*(E60+G60))","v":0}]
[{"$f":"VLOOKUP($C61,'Article Reference'!$A$2:$C$46,2,FALSE)","v":"Pylex Herbicide "},{"$f":"VLOOKUP($C61,'Article Reference'!$A$2:$C$46,3,FALSE)","v":"4x 8 fl oz"},59013624,null,{"$f":"1*E59","v":0},null,{"$f":"1*G59","v":0},null,{"$f":"IF(ISNA(VLOOKUP($C61,'Coverage Reference'!$B$4:$G$17,4,FALSE))=TRUE,0,VLOOKUP($C61,'Coverage Reference'!$B$4:$G$17,4,FALSE)*(E61+G61))","v":0},{"$f":"IF(ISNA(VLOOKUP($C61,'Coverage Reference'!$B$4:$G$17,5,FALSE))=TRUE,0,VLOOKUP($C61,'Coverage Reference'!$B$4:$G$17,5,FALSE)*(E61+G61))","v":0},{"$f":"IF(ISNA(VLOOKUP($C61,'Coverage Reference'!$B$4:$G$17,6,FALSE))=TRUE,0,VLOOKUP($C61,'Coverage Reference'!$B$4:$G$17,6,FALSE)*(E61+G61))","v":0}]
[{"$f":"VLOOKUP($C62,'Article Reference'!$A$2:$C$46,2,FALSE)","v":"Drive XLR8 Herbicide"},{"$f":"VLOOKUP($C62,'Article Reference'!$A$2:$C$46,3,FALSE)","v":"4x .5 gal"},59011404,null,{"$f":"1*E59","v":0},null,{"$f":"1*G59","v":0},null,{"$f":"IF(ISNA(VLOOKUP($C62,'Coverage Reference'!$B$4:$G$17,4,FALSE))=TRUE,0,VLOOKUP($C62,'Coverage Reference'!$B$4:$G$17,4,FALSE)*(E62+G62))","v":0},{"$f":"IF(ISNA(VLOOKUP($C62,'Coverage Reference'!$B$4:$G$17,5,FALSE))=TRUE,0,VLOOKUP($C62,'Coverage Reference'!$B$4:$G$17,5,FALSE)*(E62+G62))","v":0},{"$f":"IF(ISNA(VLOOKUP($C62,'Coverage Reference'!$B$4:$G$17,6,FALSE))=TRUE,0,VLOOKUP($C62,'Coverage Reference'!$B$4:$G$17,6,FALSE)*(E62+G62))","v":0}]
["Cool Season Zone Herbicide Cube","Cube",59017954,2461,0,{"$f":"D63*E63","v":0},0,{"$f":"G63*D63","v":0},{"$f":"IF(ISNA(VLOOKUP($C63,'Coverage Reference'!$B$4:$G$17,4,FALSE))=TRUE,0,VLOOKUP($C63,'Coverage Reference'!$B$4:$G$17,4,FALSE)*(E63+G63))","v":0},{"$f":"IF(ISNA(VLOOKUP($C63,'Coverage Reference'!$B$4:$G$17,5,FALSE))=TRUE,0,VLOOKUP($C63,'Coverage Reference'!$B$4:$G$17,5,FALSE)*(E63+G63))","v":0},{"$f":"IF(ISNA(VLOOKUP($C63,'Coverage Reference'!$B$4:$G$17,6,FALSE))=TRUE,0,VLOOKUP($C63,'Coverage Reference'!$B$4:$G$17,6,FALSE)*(E63+G63))","v":0}]
[{"$f":"VLOOKUP($C64,'Article Reference'!$A$2:$C$46,2,FALSE)","v":"Pendulum® AquaCap™ Herbicide"},{"$f":"VLOOKUP($C64,'Article Reference'!$A$2:$C$46,3,FALSE)","v":"1 x 15 gal"},59011279,null,{"$f":"E63*1","v":0},null,{"$f":"G63*1","v":0},null,{"$f":"IF(ISNA(VLOOKUP($C64,'Coverage Reference'!$B$4:$G$17,4,FALSE))=TRUE,0,VLOOKUP($C64,'Coverage Reference'!$B$4:$G$17,4,FALSE)*(E64+G64))","v":0},{"$f":"IF(ISNA(VLOOKUP($C64,'Coverage Reference'!$B$4:$G$17,5,FALSE))=TRUE,0,VLOOKUP($C64,'Coverage Reference'!$B$4:$G$17,5,FALSE)*(E64+G64))","v":0},{"$f":"IF(ISNA(VLOOKUP($C64,'Coverage Reference'!$B$4:$G$17,6,FALSE))=TRUE,0,VLOOKUP($C64,'Coverage Reference'!$B$4:$G$17,6,FALSE)*(E64+G64))","v":0}]
[{"$f":"VLOOKUP($C65,'Article Reference'!$A$2:$C$46,2,FALSE)","v":"Pylex Herbicide "},{"$f":"VLOOKUP($C65,'Article Reference'!$A$2:$C$46,3,FALSE)","v":"4x 8 fl oz"},59013624,null,{"$f":"E64*1","v":0},null,{"$f":"G64*1","v":0},null,{"$f":"IF(ISNA(VLOOKUP($C65,'Coverage Reference'!$B$4:$G$17,4,FALSE))=TRUE,0,VLOOKUP($C65,'Coverage Reference'!$B$4:$G$17,4,FALSE)*(E65+G65))","v":0},{"$f":"IF(ISNA(VLOOKUP($C65,'Coverage Reference'!$B$4:$G$17,5,FALSE))=TRUE,0,VLOOKUP($C65,'Coverage Reference'!$B$4:$G$17,5,FALSE)*(E65+G65))","v":0},{"$f":"IF(ISNA(VLOOKUP($C65,'Coverage Reference'!$B$4:$G$17,6,FALSE))=TRUE,0,VLOOKUP($C65,'Coverage Reference'!$B$4:$G$17,6,FALSE)*(E65+G65))","v":0}]
[{"$f":"VLOOKUP($C66,'Article Reference'!$A$2:$C$46,2,FALSE)","v":"Drive XLR8 Herbicide"},{"$f":"VLOOKUP($C66,'Article Reference'!$A$2:$C$46,3,FALSE)","v":"4x .5 gal"},59011404,null,{"$f":"E65*1","v":0},null,{"$f":"G65*1","v":0},null,{"$f":"IF(ISNA(VLOOKUP($C66,'Coverage Reference'!$B$4:$G$17,4,FALSE))=TRUE,0,VLOOKUP($C66,'Coverage Reference'!$B$4:$G$17,4,FALSE)*(E66+G66))","v":0},{"$f":"IF(ISNA(VLOOKUP($C66,'Coverage Reference'!$B$4:$G$17,5,FALSE))=TRUE,0,VLOOKUP($C66,'Coverage Reference'!$B$4:$G$17,5,FALSE)*(E66+G66))","v":0},{"$f":"IF(ISNA(VLOOKUP($C66,'Coverage Reference'!$B$4:$G$17,6,FALSE))=TRUE,0,VLOOKUP($C66,'Coverage Reference'!$B$4:$G$17,6,FALSE)*(E66+G66))","v":0}]
[{"$f":"VLOOKUP($C67,'Article Reference'!$A$2:$C$46,2,FALSE)","v":"Segment II Herbicide"},{"$f":"VLOOKUP($C67,'Article Reference'!$A$2:$C$46,3,FALSE)","v":"2x 2.5 gal"},59014427,null,{"$f":"E66*1","v":0},null,{"$f":"G66*1","v":0},null,{"$f":"IF(ISNA(VLOOKUP($C67,'Coverage Reference'!$B$4:$G$17,4,FALSE))=TRUE,0,VLOOKUP($C67,'Coverage Reference'!$B$4:$G$17,4,FALSE)*(E67+G67))","v":0},{"$f":"IF(ISNA(VLOOKUP($C67,'Coverage Reference'!$B$4:$G$17,5,FALSE))=TRUE,0,VLOOKUP($C67,'Coverage Reference'!$B$4:$G$17,5,FALSE)*(E67+G67))","v":0},{"$f":"IF(ISNA(VLOOKUP($C67,'Coverage Reference'!$B$4:$G$17,6,FALSE))=TRUE,0,VLOOKUP($C67,'Coverage Reference'!$B$4:$G$17,6,FALSE)*(E67+G67))","v":0}]
[{"$f":"VLOOKUP($C68,'Article Reference'!$A$2:$C$46,2,FALSE)","v":"Emerald® Fungicide"},{"$f":"VLOOKUP($C68,'Article Reference'!$A$2:$C$46,3,FALSE)","v":"10 x 0.49 lb"},59021463,1622.8799999999999,0,0,0,0,{"$f":"IF(ISNA(VLOOKUP($C68,'Coverage Reference'!$B$4:$G$17,4,FALSE))=TRUE,0,VLOOKUP($C68,'Coverage Reference'!$B$4:$G$17,4,FALSE)*(E68+G68))","v":0},{"$f":"IF(ISNA(VLOOKUP($C68,'Coverage Reference'!$B$4:$G$17,5,FALSE))=TRUE,0,VLOOKUP($C68,'Coverage Reference'!$B$4:$G$17,5,FALSE)*(E68+G68))","v":0},{"$f":"IF(ISNA(VLOOKUP($C68,'Coverage Reference'!$B$4:$G$17,6,FALSE))=TRUE,0,VLOOKUP($C68,'Coverage Reference'!$B$4:$G$17,6,FALSE)*(E68+G68))","v":0}]
[{"$f":"VLOOKUP($C69,'Article Reference'!$A$2:$C$46,2,FALSE)","v":"Emerald® Fungicide"},{"$f":"VLOOKUP($C69,'Article Reference'!$A$2:$C$46,3,FALSE)","v":"50 x 0.49 lb"},59012825,7074.8649999999998,0,0,0,0,{"$f":"IF(ISNA(VLOOKUP($C69,'Coverage Reference'!$B$4:$G$17,4,FALSE))=TRUE,0,VLOOKUP($C69,'Coverage Reference'!$B$4:$G$17,4,FALSE)*(E69+G69))","v":0},{"$f":"IF(ISNA(VLOOKUP($C69,'Coverage Reference'!$B$4:$G$17,5,FALSE))=TRUE,0,VLOOKUP($C69,'Coverage Reference'!$B$4:$G$17,5,FALSE)*(E69+G69))","v":0},{"$f":"IF(ISNA(VLOOKUP($C69,'Coverage Reference'!$B$4:$G$17,6,FALSE))=TRUE,0,VLOOKUP($C69,'Coverage Reference'!$B$4:$G$17,6,FALSE)*(E69+G69))","v":0}]
[{"$f":"VLOOKUP($C70,'Article Reference'!$A$2:$C$46,2,FALSE)","v":"Honor® Intrinsic™ Brand Fungicide"},{"$f":"VLOOKUP($C70,'Article Reference'!$A$2:$C$46,3,FALSE)","v":"1 x 36 lb"},59012885,4027.32,0,0,0,0,{"$f":"IF(ISNA(VLOOKUP($C70,'Coverage Reference'!$B$4:$G$17,4,FALSE))=TRUE,0,VLOOKUP($C70,'Coverage Reference'!$B$4:$G$17,4,FALSE)*(E70+G70))","v":0},{"$f":"IF(ISNA(VLOOKUP($C70,'Coverage Reference'!$B$4:$G$17,5,FALSE))=TRUE,0,VLOOKUP($C70,'Coverage Reference'!$B$4:$G$17,5,FALSE)*(E70+G70))","v":0},{"$f":"IF(ISNA(VLOOKUP($C70,'Coverage Reference'!$B$4:$G$17,6,FALSE))=TRUE,0,VLOOKUP($C70,'Coverage Reference'!$B$4:$G$17,6,FALSE)*(E70+G70))","v":0}]
[{"$f":"VLOOKUP($C71,'Article Reference'!$A$2:$C$46,2,FALSE)","v":"Honor® Intrinsic™ Brand Fungicide"},{"$f":"VLOOKUP($C71,'Article Reference'!$A$2:$C$46,3,FALSE)","v":"6 x 3 lb"},59012350,2707.7400000000002,0,0,0,0,{"$f":"IF(ISNA(VLOOKUP($C71,'Coverage Reference'!$B$4:$G$17,4,FALSE))=TRUE,0,VLOOKUP($C71,'Coverage Reference'!$B$4:$G$17,4,FALSE)*(E71+G71))","v":0},{"$f":"IF(ISNA(VLOOKUP($C71,'Coverage Reference'!$B$4:$G$17,5,FALSE))=TRUE,0,VLOOKUP($C71,'Coverage Reference'!$B$4:$G$17,5,FALSE)*(E71+G71))","v":0},{"$f":"IF(ISNA(VLOOKUP($C71,'Coverage Reference'!$B$4:$G$17,6,FALSE))=TRUE,0,VLOOKUP($C71,'Coverage Reference'!$B$4:$G$17,6,FALSE)*(E71+G71))","v":0}]
[{"$f":"VLOOKUP($C72,'Article Reference'!$A$2:$C$46,2,FALSE)","v":"Insignia® SC Intrinsic™ Brand Fungicide"},{"$f":"VLOOKUP($C72,'Article Reference'!$A$2:$C$46,3,FALSE)","v":"2x 2.5 gal"},59014135,5997.8499999999995,0,0,0,0,{"$f":"IF(ISNA(VLOOKUP($C72,'Coverage Reference'!$B$4:$G$17,4,FALSE))=TRUE,0,VLOOKUP($C72,'Coverage Reference'!$B$4:$G$17,4,FALSE)*(E72+G72))","v":0},{"$f":"IF(ISNA(VLOOKUP($C72,'Coverage Reference'!$B$4:$G$17,5,FALSE))=TRUE,0,VLOOKUP($C72,'Coverage Reference'!$B$4:$G$17,5,FALSE)*(E72+G72))","v":0},{"$f":"IF(ISNA(VLOOKUP($C72,'Coverage Reference'!$B$4:$G$17,6,FALSE))=TRUE,0,VLOOKUP($C72,'Coverage Reference'!$B$4:$G$17,6,FALSE)*(E72+G72))","v":0}]
[{"$f":"VLOOKUP($C73,'Article Reference'!$A$2:$C$46,2,FALSE)","v":"Insignia® SC Intrinsic™ Brand Fungicide"},{"$f":"VLOOKUP($C73,'Article Reference'!$A$2:$C$46,3,FALSE)","v":"4 x 122 fl oz"},59012450,6592.88,0,0,0,0,{"$f":"IF(ISNA(VLOOKUP($C73,'Coverage Reference'!$B$4:$G$17,4,FALSE))=TRUE,0,VLOOKUP($C73,'Coverage Reference'!$B$4:$G$17,4,FALSE)*(E73+G73))","v":0},{"$f":"IF(ISNA(VLOOKUP($C73,'Coverage Reference'!$B$4:$G$17,5,FALSE))=TRUE,0,VLOOKUP($C73,'Coverage Reference'!$B$4:$G$17,5,FALSE)*(E73+G73))","v":0},{"$f":"IF(ISNA(VLOOKUP($C73,'Coverage Reference'!$B$4:$G$17,6,FALSE))=TRUE,0,VLOOKUP($C73,'Coverage Reference'!$B$4:$G$17,6,FALSE)*(E73+G73))","v":0}]
[{"$f":"VLOOKUP($C74,'Article Reference'!$A$2:$C$46,2,FALSE)","v":"Insignia® SC Intrinsic™ Brand Fungicide"},{"$f":"VLOOKUP($C74,'Article Reference'!$A$2:$C$46,3,FALSE)","v":"4 x 30.5 fl oz"},59014134,1760.46,0,0,0,0,{"$f":"IF(ISNA(VLOOKUP($C74,'Coverage Reference'!$B$4:$G$17,4,FALSE))=TRUE,0,VLOOKUP($C74,'Coverage Reference'!$B$4:$G$17,4,FALSE)*(E74+G74))","v":0},{"$f":"IF(ISNA(VLOOKUP($C74,'Coverage Reference'!$B$4:$G$17,5,FALSE))=TRUE,0,VLOOKUP($C74,'Coverage Reference'!$B$4:$G$17,5,FALSE)*(E74+G74))","v":0},{"$f":"IF(ISNA(VLOOKUP($C74,'Coverage Reference'!$B$4:$G$17,6,FALSE))=TRUE,0,VLOOKUP($C74,'Coverage Reference'!$B$4:$G$17,6,FALSE)*(E74+G74))","v":0}]
[{"$f":"VLOOKUP($C75,'Article Reference'!$A$2:$C$46,2,FALSE)","v":"Lexicon® Intrinsic™ Brand Fungicide"},{"$f":"VLOOKUP($C75,'Article Reference'!$A$2:$C$46,3,FALSE)","v":"4x 21 oz"},59013840,2003.4,0,0,0,0,{"$f":"IF(ISNA(VLOOKUP($C75,'Coverage Reference'!$B$4:$G$17,4,FALSE))=TRUE,0,VLOOKUP($C75,'Coverage Reference'!$B$4:$G$17,4,FALSE)*(E75+G75))","v":0},{"$f":"IF(ISNA(VLOOKUP($C75,'Coverage Reference'!$B$4:$G$17,5,FALSE))=TRUE,0,VLOOKUP($C75,'Coverage Reference'!$B$4:$G$17,5,FALSE)*(E75+G75))","v":0},{"$f":"IF(ISNA(VLOOKUP($C75,'Coverage Reference'!$B$4:$G$17,6,FALSE))=TRUE,0,VLOOKUP($C75,'Coverage Reference'!$B$4:$G$17,6,FALSE)*(E75+G75))","v":0}]
[{"$f":"VLOOKUP($C76,'Article Reference'!$A$2:$C$46,2,FALSE)","v":"Orkestra™ Intrinsic™ Brand Fungicide"},{"$f":"VLOOKUP($C76,'Article Reference'!$A$2:$C$46,3,FALSE)","v":"4x 16 oz"},59014379,563.20000000000005,0,0,0,0,{"$f":"IF(ISNA(VLOOKUP($C76,'Coverage Reference'!$B$4:$G$17,4,FALSE))=TRUE,0,VLOOKUP($C76,'Coverage Reference'!$B$4:$G$17,4,FALSE)*(E76+G76))","v":0},{"$f":"IF(ISNA(VLOOKUP($C76,'Coverage Reference'!$B$4:$G$17,5,FALSE))=TRUE,0,VLOOKUP($C76,'Coverage Reference'!$B$4:$G$17,5,FALSE)*(E76+G76))","v":0},{"$f":"IF(ISNA(VLOOKUP($C76,'Coverage Reference'!$B$4:$G$17,6,FALSE))=TRUE,0,VLOOKUP($C76,'Coverage Reference'!$B$4:$G$17,6,FALSE)*(E76+G76))","v":0}]
[{"$f":"VLOOKUP($C77,'Article Reference'!$A$2:$C$46,2,FALSE)","v":"Pageant® Intrinsic™ Brand Fungicide"},{"$f":"VLOOKUP($C77,'Article Reference'!$A$2:$C$46,3,FALSE)","v":"4 x 1 lb"},59012349,373.56,0,0,0,0,{"$f":"IF(ISNA(VLOOKUP($C77,'Coverage Reference'!$B$4:$G$17,4,FALSE))=TRUE,0,VLOOKUP($C77,'Coverage Reference'!$B$4:$G$17,4,FALSE)*(E77+G77))","v":0},{"$f":"IF(ISNA(VLOOKUP($C77,'Coverage Reference'!$B$4:$G$17,5,FALSE))=TRUE,0,VLOOKUP($C77,'Coverage Reference'!$B$4:$G$17,5,FALSE)*(E77+G77))","v":0},{"$f":"IF(ISNA(VLOOKUP($C77,'Coverage Reference'!$B$4:$G$17,6,FALSE))=TRUE,0,VLOOKUP($C77,'Coverage Reference'!$B$4:$G$17,6,FALSE)*(E77+G77))","v":0}]
[{"$f":"VLOOKUP($C78,'Article Reference'!$A$2:$C$46,2,FALSE)","v":"Pageant® Intrinsic™ Brand Fungicide"},{"$f":"VLOOKUP($C78,'Article Reference'!$A$2:$C$46,3,FALSE)","v":"4 x 12 lb"},59012429,4150.08,0,0,0,0,{"$f":"IF(ISNA(VLOOKUP($C78,'Coverage Reference'!$B$4:$G$17,4,FALSE))=TRUE,0,VLOOKUP($C78,'Coverage Reference'!$B$4:$G$17,4,FALSE)*(E78+G78))","v":0},{"$f":"IF(ISNA(VLOOKUP($C78,'Coverage Reference'!$B$4:$G$17,5,FALSE))=TRUE,0,VLOOKUP($C78,'Coverage Reference'!$B$4:$G$17,5,FALSE)*(E78+G78))","v":0},{"$f":"IF(ISNA(VLOOKUP($C78,'Coverage Reference'!$B$4:$G$17,6,FALSE))=TRUE,0,VLOOKUP($C78,'Coverage Reference'!$B$4:$G$17,6,FALSE)*(E78+G78))","v":0}]
[{"$f":"VLOOKUP($C79,'Article Reference'!$A$2:$C$46,2,FALSE)","v":"Pendulum® AquaCap™ Bulk Herbicide"},{"$f":"VLOOKUP($C79,'Article Reference'!$A$2:$C$46,3,FALSE)","v":"110 gal"},59049202,5500,0,{"$f":"D79*E79","v":0},0,{"$f":"G79*D79","v":0},{"$f":"IF(ISNA(VLOOKUP($C79,'Coverage Reference'!$B$4:$G$17,4,FALSE))=TRUE,0,VLOOKUP($C79,'Coverage Reference'!$B$4:$G$17,4,FALSE)*(E79+G79))","v":0},{"$f":"IF(ISNA(VLOOKUP($C79,'Coverage Reference'!$B$4:$G$17,5,FALSE))=TRUE,0,VLOOKUP($C79,'Coverage Reference'!$B$4:$G$17,5,FALSE)*(E79+G79))","v":0},{"$f":"IF(ISNA(VLOOKUP($C79,'Coverage Reference'!$B$4:$G$17,6,FALSE))=TRUE,0,VLOOKUP($C79,'Coverage Reference'!$B$4:$G$17,6,FALSE)*(E79+G79))","v":0}]
[{"$f":"VLOOKUP($C80,'Article Reference'!$A$2:$C$46,2,FALSE)","v":"Pendulum® AquaCap™ Bulk Herbicide"},"220 gal",59049202,11000,0,{"$f":"D80*E80","v":0},0,{"$f":"G80*D80","v":0},{"$f":"IF(ISNA(VLOOKUP($C80,'Coverage Reference'!$B$4:$G$17,4,FALSE))=TRUE,0,VLOOKUP($C80,'Coverage Reference'!$B$4:$G$17,4,FALSE)*(E80+G80))","v":0},{"$f":"IF(ISNA(VLOOKUP($C80,'Coverage Reference'!$B$4:$G$17,5,FALSE))=TRUE,0,VLOOKUP($C80,'Coverage Reference'!$B$4:$G$17,5,FALSE)*(E80+G80))","v":0},{"$f":"IF(ISNA(VLOOKUP($C80,'Coverage Reference'!$B$4:$G$17,6,FALSE))=TRUE,0,VLOOKUP($C80,'Coverage Reference'!$B$4:$G$17,6,FALSE)*(E80+G80))","v":0}]
[{"$f":"VLOOKUP($C81,'Article Reference'!$A$2:$C$46,2,FALSE)","v":"Pendulum® AquaCap™ Herbicide"},{"$f":"VLOOKUP($C81,'Article Reference'!$A$2:$C$46,3,FALSE)","v":"1 x 15 gal"},59011279,750,0,0,0,0,{"$f":"IF(ISNA(VLOOKUP($C81,'Coverage Reference'!$B$4:$G$17,4,FALSE))=TRUE,0,VLOOKUP($C81,'Coverage Reference'!$B$4:$G$17,4,FALSE)*(E81+G81))","v":0},{"$f":"IF(ISNA(VLOOKUP($C81,'Coverage Reference'!$B$4:$G$17,5,FALSE))=TRUE,0,VLOOKUP($C81,'Coverage Reference'!$B$4:$G$17,5,FALSE)*(E81+G81))","v":0},{"$f":"IF(ISNA(VLOOKUP($C81,'Coverage Reference'!$B$4:$G$17,6,FALSE))=TRUE,0,VLOOKUP($C81,'Coverage Reference'!$B$4:$G$17,6,FALSE)*(E81+G81))","v":0}]
[{"$f":"VLOOKUP($C82,'Article Reference'!$A$2:$C$46,2,FALSE)","v":"Sultan™ Miticide"},{"$f":"VLOOKUP($C82,'Article Reference'!$A$2:$C$46,3,FALSE)","v":"4x 0.125 gal"},59014112,629.02499999999998,0,0,0,0,{"$f":"IF(ISNA(VLOOKUP($C82,'Coverage Reference'!$B$4:$G$17,4,FALSE))=TRUE,0,VLOOKUP($C82,'Coverage Reference'!$B$4:$G$17,4,FALSE)*(E82+G82))","v":0},{"$f":"IF(ISNA(VLOOKUP($C82,'Coverage Reference'!$B$4:$G$17,5,FALSE))=TRUE,0,VLOOKUP($C82,'Coverage Reference'!$B$4:$G$17,5,FALSE)*(E82+G82))","v":0},{"$f":"IF(ISNA(VLOOKUP($C82,'Coverage Reference'!$B$4:$G$17,6,FALSE))=TRUE,0,VLOOKUP($C82,'Coverage Reference'!$B$4:$G$17,6,FALSE)*(E82+G82))","v":0}]
[{"$f":"VLOOKUP($C83,'Article Reference'!$A$2:$C$46,2,FALSE)","v":"Tower® Herbicide"},{"$f":"VLOOKUP($C83,'Article Reference'!$A$2:$C$46,3,FALSE)","v":"2 x 2.5 gal"},59014247,1527,0,0,0,0,{"$f":"IF(ISNA(VLOOKUP($C83,'Coverage Reference'!$B$4:$G$17,4,FALSE))=TRUE,0,VLOOKUP($C83,'Coverage Reference'!$B$4:$G$17,4,FALSE)*(E83+G83))","v":0},{"$f":"IF(ISNA(VLOOKUP($C83,'Coverage Reference'!$B$4:$G$17,5,FALSE))=TRUE,0,VLOOKUP($C83,'Coverage Reference'!$B$4:$G$17,5,FALSE)*(E83+G83))","v":0},{"$f":"IF(ISNA(VLOOKUP($C83,'Coverage Reference'!$B$4:$G$17,6,FALSE))=TRUE,0,VLOOKUP($C83,'Coverage Reference'!$B$4:$G$17,6,FALSE)*(E83+G83))","v":0}]
[{"$f":"VLOOKUP($C84,'Article Reference'!$A$2:$C$46,2,FALSE)","v":"Xzemplar™ Fungicide"},{"$f":"VLOOKUP($C84,'Article Reference'!$A$2:$C$46,3,FALSE)","v":"2x 114 oz"},59013833,3691.32,0,0,0,0,{"$f":"IF(ISNA(VLOOKUP($C84,'Coverage Reference'!$B$4:$G$17,4,FALSE))=TRUE,0,VLOOKUP($C84,'Coverage Reference'!$B$4:$G$17,4,FALSE)*(E84+G84))","v":0},{"$f":"IF(ISNA(VLOOKUP($C84,'Coverage Reference'!$B$4:$G$17,5,FALSE))=TRUE,0,VLOOKUP($C84,'Coverage Reference'!$B$4:$G$17,5,FALSE)*(E84+G84))","v":0},{"$f":"IF(ISNA(VLOOKUP($C84,'Coverage Reference'!$B$4:$G$17,6,FALSE))=TRUE,0,VLOOKUP($C84,'Coverage Reference'!$B$4:$G$17,6,FALSE)*(E84+G84))","v":0}]
[{"$f":"VLOOKUP($C85,'Article Reference'!$A$2:$C$46,2,FALSE)","v":"Xzemplar™Fungicide"},{"$f":"VLOOKUP($C85,'Article Reference'!$A$2:$C$46,3,FALSE)","v":"4 x 11.4 oz"},59014120,849.52800000000002,0,0,0,0,{"$f":"IF(ISNA(VLOOKUP($C85,'Coverage Reference'!$B$4:$G$17,4,FALSE))=TRUE,0,VLOOKUP($C85,'Coverage Reference'!$B$4:$G$17,4,FALSE)*(E85+G85))","v":0},{"$f":"IF(ISNA(VLOOKUP($C85,'Coverage Reference'!$B$4:$G$17,5,FALSE))=TRUE,0,VLOOKUP($C85,'Coverage Reference'!$B$4:$G$17,5,FALSE)*(E85+G85))","v":0},{"$f":"IF(ISNA(VLOOKUP($C85,'Coverage Reference'!$B$4:$G$17,6,FALSE))=TRUE,0,VLOOKUP($C85,'Coverage Reference'!$B$4:$G$17,6,FALSE)*(E85+G85))","v":0}]
["AGENCY SUB-TOTAL",null,null,null,null,{"$f":"SUM(F26:F85)","v":0},null,{"$f":"SUM(H26:H85)","v":0},{"$f":"H86+F86","v":0}]
["Qualifying Non-Agency Products","Package","Article Number","Redemption Value","Oct Order (Cases)","Oct Sales","Nov-Dec Order (Cases)","Nov-Dec Sales","Acres Low","Acres Mid","Acres High"]
[{"$f":"VLOOKUP($C88,'Article Reference'!$A$2:$C$54,2,FALSE)","v":"Admiral Lake Colorant"},{"$f":"VLOOKUP($C88,'Article Reference'!$A$2:$C$54,3,FALSE)","v":"4x1 gal"},59013341,167.25,0,{"$f":"E88*D88","v":0},0,{"$f":"G88*D88","v":0},{"$f":"IF(ISNA(VLOOKUP($C88,'Coverage Reference'!$B$4:$G$17,4,FALSE))=TRUE,0,VLOOKUP($C88,'Coverage Reference'!$B$4:$G$17,4,FALSE)*(E88+G88))","v":0},{"$f":"IF(ISNA(VLOOKUP($C88,'Coverage Reference'!$B$4:$G$17,5,FALSE))=TRUE,0,VLOOKUP($C88,'Coverage Reference'!$B$4:$G$17,5,FALSE)*(E88+G88))","v":0},{"$f":"IF(ISNA(VLOOKUP($C88,'Coverage Reference'!$B$4:$G$17,6,FALSE))=TRUE,0,VLOOKUP($C88,'Coverage Reference'!$B$4:$G$17,6,FALSE)*(E88+G88))","v":0}]
[{"$f":"VLOOKUP($C89,'Article Reference'!$A$2:$C$54,2,FALSE)","v":"All Weather Foam Concentrate"},{"$f":"VLOOKUP($C89,'Article Reference'!$A$2:$C$54,3,FALSE)","v":"4x1 gal"},59013451,195,0,{"$f":"E89*D89","v":0},0,{"$f":"G89*D89","v":0},{"$f":"IF(ISNA(VLOOKUP($C89,'Coverage Reference'!$B$4:$G$17,4,FALSE))=TRUE,0,VLOOKUP($C89,'Coverage Reference'!$B$4:$G$17,4,FALSE)*(E89+G89))","v":0},{"$f":"IF(ISNA(VLOOKUP($C89,'Coverage Reference'!$B$4:$G$17,5,FALSE))=TRUE,0,VLOOKUP($C89,'Coverage Reference'!$B$4:$G$17,5,FALSE)*(E89+G89))","v":0},{"$f":"IF(ISNA(VLOOKUP($C89,'Coverage Reference'!$B$4:$G$17,6,FALSE))=TRUE,0,VLOOKUP($C89,'Coverage Reference'!$B$4:$G$17,6,FALSE)*(E89+G89))","v":0}]
[{"$f":"VLOOKUP($C90,'Article Reference'!$A$2:$C$54,2,FALSE)","v":"Amdro Pro Fire Ant Bait"},{"$f":"VLOOKUP($C90,'Article Reference'!$A$2:$C$54,3,FALSE)","v":"1 x 25lbs"},59021451,391.875,0,0,0,0,{"$f":"IF(ISNA(VLOOKUP($C90,'Coverage Reference'!$B$4:$G$17,4,FALSE))=TRUE,0,VLOOKUP($C90,'Coverage Reference'!$B$4:$G$17,4,FALSE)*(E90+G90))","v":0},{"$f":"IF(ISNA(VLOOKUP($C90,'Coverage Reference'!$B$4:$G$17,5,FALSE))=TRUE,0,VLOOKUP($C90,'Coverage Reference'!$B$4:$G$17,5,FALSE)*(E90+G90))","v":0},{"$f":"IF(ISNA(VLOOKUP($C90,'Coverage Reference'!$B$4:$G$17,6,FALSE))=TRUE,0,VLOOKUP($C90,'Coverage Reference'!$B$4:$G$17,6,FALSE)*(E90+G90))","v":0}]
[{"$f":"VLOOKUP($C91,'Article Reference'!$A$2:$C$54,2,FALSE)","v":"Basagran Herbicide"},{"$f":"VLOOKUP($C91,'Article Reference'!$A$2:$C$54,3,FALSE)","v":"2x 1 gal"},59011636,221.85,0,0,0,0,{"$f":"IF(ISNA(VLOOKUP($C91,'Coverage Reference'!$B$4:$G$17,4,FALSE))=TRUE,0,VLOOKUP($C91,'Coverage Reference'!$B$4:$G$17,4,FALSE)*(E91+G91))","v":0},{"$f":"IF(ISNA(VLOOKUP($C91,'Coverage Reference'!$B$4:$G$17,5,FALSE))=TRUE,0,VLOOKUP($C91,'Coverage Reference'!$B$4:$G$17,5,FALSE)*(E91+G91))","v":0},{"$f":"IF(ISNA(VLOOKUP($C91,'Coverage Reference'!$B$4:$G$17,6,FALSE))=TRUE,0,VLOOKUP($C91,'Coverage Reference'!$B$4:$G$17,6,FALSE)*(E91+G91))","v":0}]
[{"$f":"VLOOKUP($C92,'Article Reference'!$A$2:$C$54,2,FALSE)","v":"Black Onyx"},{"$f":"VLOOKUP($C92,'Article Reference'!$A$2:$C$54,3,FALSE)","v":"4x1 gal"},59013424,304.05,0,0,0,0,{"$f":"IF(ISNA(VLOOKUP($C92,'Coverage Reference'!$B$4:$G$17,4,FALSE))=TRUE,0,VLOOKUP($C92,'Coverage Reference'!$B$4:$G$17,4,FALSE)*(E92+G92))","v":0},{"$f":"IF(ISNA(VLOOKUP($C92,'Coverage Reference'!$B$4:$G$17,5,FALSE))=TRUE,0,VLOOKUP($C92,'Coverage Reference'!$B$4:$G$17,5,FALSE)*(E92+G92))","v":0},{"$f":"IF(ISNA(VLOOKUP($C92,'Coverage Reference'!$B$4:$G$17,6,FALSE))=TRUE,0,VLOOKUP($C92,'Coverage Reference'!$B$4:$G$17,6,FALSE)*(E92+G92))","v":0}]
[{"$f":"VLOOKUP($C93,'Article Reference'!$A$2:$C$54,2,FALSE)","v":"Drive XLR8 Herbicide"},{"$f":"VLOOKUP($C93,'Article Reference'!$A$2:$C$54,3,FALSE)","v":"4x .5 gal"},59011404,299.89999999999998,0,0,0,0,{"$f":"IF(ISNA(VLOOKUP($C93,'Coverage Reference'!$B$4:$G$17,4,FALSE))=TRUE,0,VLOOKUP($C93,'Coverage Reference'!$B$4:$G$17,4,FALSE)*(E93+G93))","v":0},{"$f":"IF(ISNA(VLOOKUP($C93,'Coverage Reference'!$B$4:$G$17,5,FALSE))=TRUE,0,VLOOKUP($C93,'Coverage Reference'!$B$4:$G$17,5,FALSE)*(E93+G93))","v":0},{"$f":"IF(ISNA(VLOOKUP($C93,'Coverage Reference'!$B$4:$G$17,6,FALSE))=TRUE,0,VLOOKUP($C93,'Coverage Reference'!$B$4:$G$17,6,FALSE)*(E93+G93))","v":0}]
[{"$f":"VLOOKUP($C94,'Article Reference'!$A$2:$C$54,2,FALSE)","v":"Green Lawnger"},{"$f":"VLOOKUP($C94,'Article Reference'!$A$2:$C$54,3,FALSE)","v":"4x1 gal"},59013434,233.35000000000002,0,0,0,0,{"$f":"IF(ISNA(VLOOKUP($C94,'Coverage Reference'!$B$4:$G$17,4,FALSE))=TRUE,0,VLOOKUP($C94,'Coverage Reference'!$B$4:$G$17,4,FALSE)*(E94+G94))","v":0},{"$f":"IF(ISNA(VLOOKUP($C94,'Coverage Reference'!$B$4:$G$17,5,FALSE))=TRUE,0,VLOOKUP($C94,'Coverage Reference'!$B$4:$G$17,5,FALSE)*(E94+G94))","v":0},{"$f":"IF(ISNA(VLOOKUP($C94,'Coverage Reference'!$B$4:$G$17,6,FALSE))=TRUE,0,VLOOKUP($C94,'Coverage Reference'!$B$4:$G$17,6,FALSE)*(E94+G94))","v":0}]
[{"$f":"VLOOKUP($C95,'Article Reference'!$A$2:$C$54,2,FALSE)","v":"Green Lawnger"},{"$f":"VLOOKUP($C95,'Article Reference'!$A$2:$C$54,3,FALSE)","v":"2x2.5 gal"},59013430,291.3125,0,0,0,0,{"$f":"IF(ISNA(VLOOKUP($C95,'Coverage Reference'!$B$4:$G$17,4,FALSE))=TRUE,0,VLOOKUP($C95,'Coverage Reference'!$B$4:$G$17,4,FALSE)*(E95+G95))","v":0},{"$f":"IF(ISNA(VLOOKUP($C95,'Coverage Reference'!$B$4:$G$17,5,FALSE))=TRUE,0,VLOOKUP($C95,'Coverage Reference'!$B$4:$G$17,5,FALSE)*(E95+G95))","v":0},{"$f":"IF(ISNA(VLOOKUP($C95,'Coverage Reference'!$B$4:$G$17,6,FALSE))=TRUE,0,VLOOKUP($C95,'Coverage Reference'!$B$4:$G$17,6,FALSE)*(E95+G95))","v":0}]
[{"$f":"VLOOKUP($C96,'Article Reference'!$A$2:$C$54,2,FALSE)","v":"Green Lawnger Transition HC Colorant"},{"$f":"VLOOKUP($C96,'Article Reference'!$A$2:$C$54,3,FALSE)","v":"4x 1 gal"},59013410,618.5,0,0,0,0,{"$f":"IF(ISNA(VLOOKUP($C96,'Coverage Reference'!$B$4:$G$17,4,FALSE))=TRUE,0,VLOOKUP($C96,'Coverage Reference'!$B$4:$G$17,4,FALSE)*(E96+G96))","v":0},{"$f":"IF(ISNA(VLOOKUP($C96,'Coverage Reference'!$B$4:$G$17,5,FALSE))=TRUE,0,VLOOKUP($C96,'Coverage Reference'!$B$4:$G$17,5,FALSE)*(E96+G96))","v":0},{"$f":"IF(ISNA(VLOOKUP($C96,'Coverage Reference'!$B$4:$G$17,6,FALSE))=TRUE,0,VLOOKUP($C96,'Coverage Reference'!$B$4:$G$17,6,FALSE)*(E96+G96))","v":0}]
[{"$f":"VLOOKUP($C97,'Article Reference'!$A$2:$C$54,2,FALSE)","v":"Green Lawnger Turf Colorant"},{"$f":"VLOOKUP($C97,'Article Reference'!$A$2:$C$54,3,FALSE)","v":"1x 30 gal"},59013284,1606.5,0,0,0,0,{"$f":"IF(ISNA(VLOOKUP($C97,'Coverage Reference'!$B$4:$G$17,4,FALSE))=TRUE,0,VLOOKUP($C97,'Coverage Reference'!$B$4:$G$17,4,FALSE)*(E97+G97))","v":0},{"$f":"IF(ISNA(VLOOKUP($C97,'Coverage Reference'!$B$4:$G$17,5,FALSE))=TRUE,0,VLOOKUP($C97,'Coverage Reference'!$B$4:$G$17,5,FALSE)*(E97+G97))","v":0},{"$f":"IF(ISNA(VLOOKUP($C97,'Coverage Reference'!$B$4:$G$17,6,FALSE))=TRUE,0,VLOOKUP($C97,'Coverage Reference'!$B$4:$G$17,6,FALSE)*(E97+G97))","v":0}]
[{"$f":"VLOOKUP($C98,'Article Reference'!$A$2:$C$54,2,FALSE)","v":"Green Lawnger Vision Pro"},{"$f":"VLOOKUP($C98,'Article Reference'!$A$2:$C$54,3,FALSE)","v":"4x1 gal"},59013342,551,0,0,0,0,{"$f":"IF(ISNA(VLOOKUP($C98,'Coverage Reference'!$B$4:$G$17,4,FALSE))=TRUE,0,VLOOKUP($C98,'Coverage Reference'!$B$4:$G$17,4,FALSE)*(E98+G98))","v":0},{"$f":"IF(ISNA(VLOOKUP($C98,'Coverage Reference'!$B$4:$G$17,5,FALSE))=TRUE,0,VLOOKUP($C98,'Coverage Reference'!$B$4:$G$17,5,FALSE)*(E98+G98))","v":0},{"$f":"IF(ISNA(VLOOKUP($C98,'Coverage Reference'!$B$4:$G$17,6,FALSE))=TRUE,0,VLOOKUP($C98,'Coverage Reference'!$B$4:$G$17,6,FALSE)*(E98+G98))","v":0}]
[{"$f":"VLOOKUP($C99,'Article Reference'!$A$2:$C$54,2,FALSE)","v":"Neutralize Dry"},{"$f":"VLOOKUP($C99,'Article Reference'!$A$2:$C$54,3,FALSE)","v":"12 x 2 lbs"},59013346,147.30000000000001,0,0,0,0,{"$f":"IF(ISNA(VLOOKUP($C99,'Coverage Reference'!$B$4:$G$17,4,FALSE))=TRUE,0,VLOOKUP($C99,'Coverage Reference'!$B$4:$G$17,4,FALSE)*(E99+G99))","v":0},{"$f":"IF(ISNA(VLOOKUP($C99,'Coverage Reference'!$B$4:$G$17,5,FALSE))=TRUE,0,VLOOKUP($C99,'Coverage Reference'!$B$4:$G$17,5,FALSE)*(E99+G99))","v":0},{"$f":"IF(ISNA(VLOOKUP($C99,'Coverage Reference'!$B$4:$G$17,6,FALSE))=TRUE,0,VLOOKUP($C99,'Coverage Reference'!$B$4:$G$17,6,FALSE)*(E99+G99))","v":0}]
[{"$f":"VLOOKUP($C100,'Article Reference'!$A$2:$C$54,2,FALSE)","v":"Neutralize Liquid"},{"$f":"VLOOKUP($C100,'Article Reference'!$A$2:$C$54,3,FALSE)","v":"4 x 1 gal"},59014385,119.05,0,0,0,0,{"$f":"IF(ISNA(VLOOKUP($C100,'Coverage Reference'!$B$4:$G$17,4,FALSE))=TRUE,0,VLOOKUP($C100,'Coverage Reference'!$B$4:$G$17,4,FALSE)*(E100+G100))","v":0},{"$f":"IF(ISNA(VLOOKUP($C100,'Coverage Reference'!$B$4:$G$17,5,FALSE))=TRUE,0,VLOOKUP($C100,'Coverage Reference'!$B$4:$G$17,5,FALSE)*(E100+G100))","v":0},{"$f":"IF(ISNA(VLOOKUP($C100,'Coverage Reference'!$B$4:$G$17,6,FALSE))=TRUE,0,VLOOKUP($C100,'Coverage Reference'!$B$4:$G$17,6,FALSE)*(E100+G100))","v":0}]
[{"$f":"VLOOKUP($C101,'Article Reference'!$A$2:$C$54,2,FALSE)","v":"NutroSol Tank Cleaner"},{"$f":"VLOOKUP($C101,'Article Reference'!$A$2:$C$54,3,FALSE)","v":"12x2 lbs"},59013352,111.89999999999999,0,0,0,0,{"$f":"IF(ISNA(VLOOKUP($C101,'Coverage Reference'!$B$4:$G$17,4,FALSE))=TRUE,0,VLOOKUP($C101,'Coverage Reference'!$B$4:$G$17,4,FALSE)*(E101+G101))","v":0},{"$f":"IF(ISNA(VLOOKUP($C101,'Coverage Reference'!$B$4:$G$17,5,FALSE))=TRUE,0,VLOOKUP($C101,'Coverage Reference'!$B$4:$G$17,5,FALSE)*(E101+G101))","v":0},{"$f":"IF(ISNA(VLOOKUP($C101,'Coverage Reference'!$B$4:$G$17,6,FALSE))=TRUE,0,VLOOKUP($C101,'Coverage Reference'!$B$4:$G$17,6,FALSE)*(E101+G101))","v":0}]
[{"$f":"VLOOKUP($C102,'Article Reference'!$A$2:$C$54,2,FALSE)","v":"Pendulum 2G"},{"$f":"VLOOKUP($C102,'Article Reference'!$A$2:$C$54,3,FALSE)","v":"40 lbs bag"},59015072,70,0,0,0,0,{"$f":"IF(ISNA(VLOOKUP($C102,'Coverage Reference'!$B$4:$G$17,4,FALSE))=TRUE,0,VLOOKUP($C102,'Coverage Reference'!$B$4:$G$17,4,FALSE)*(E102+G102))","v":0},{"$f":"IF(ISNA(VLOOKUP($C102,'Coverage Reference'!$B$4:$G$17,5,FALSE))=TRUE,0,VLOOKUP($C102,'Coverage Reference'!$B$4:$G$17,5,FALSE)*(E102+G102))","v":0},{"$f":"IF(ISNA(VLOOKUP($C102,'Coverage Reference'!$B$4:$G$17,6,FALSE))=TRUE,0,VLOOKUP($C102,'Coverage Reference'!$B$4:$G$17,6,FALSE)*(E102+G102))","v":0}]
[{"$f":"VLOOKUP($C103,'Article Reference'!$A$2:$C$54,2,FALSE)","v":"Pendulum 3.3EC"},{"$f":"VLOOKUP($C103,'Article Reference'!$A$2:$C$54,3,FALSE)","v":"2x2.5 gal"},59015228,203.25000000000003,0,0,0,0,{"$f":"IF(ISNA(VLOOKUP($C103,'Coverage Reference'!$B$4:$G$17,4,FALSE))=TRUE,0,VLOOKUP($C103,'Coverage Reference'!$B$4:$G$17,4,FALSE)*(E103+G103))","v":0},{"$f":"IF(ISNA(VLOOKUP($C103,'Coverage Reference'!$B$4:$G$17,5,FALSE))=TRUE,0,VLOOKUP($C103,'Coverage Reference'!$B$4:$G$17,5,FALSE)*(E103+G103))","v":0},{"$f":"IF(ISNA(VLOOKUP($C103,'Coverage Reference'!$B$4:$G$17,6,FALSE))=TRUE,0,VLOOKUP($C103,'Coverage Reference'!$B$4:$G$17,6,FALSE)*(E103+G103))","v":0}]
[{"$f":"VLOOKUP($C104,'Article Reference'!$A$2:$C$54,2,FALSE)","v":"Pendulum Aquacap"},{"$f":"VLOOKUP($C104,'Article Reference'!$A$2:$C$54,3,FALSE)","v":"2x2.5 gal"},59049276,344.625,0,0,0,0,{"$f":"IF(ISNA(VLOOKUP($C104,'Coverage Reference'!$B$4:$G$17,4,FALSE))=TRUE,0,VLOOKUP($C104,'Coverage Reference'!$B$4:$G$17,4,FALSE)*(E104+G104))","v":0},{"$f":"IF(ISNA(VLOOKUP($C104,'Coverage Reference'!$B$4:$G$17,5,FALSE))=TRUE,0,VLOOKUP($C104,'Coverage Reference'!$B$4:$G$17,5,FALSE)*(E104+G104))","v":0},{"$f":"IF(ISNA(VLOOKUP($C104,'Coverage Reference'!$B$4:$G$17,6,FALSE))=TRUE,0,VLOOKUP($C104,'Coverage Reference'!$B$4:$G$17,6,FALSE)*(E104+G104))","v":0}]
[{"$f":"VLOOKUP($C105,'Article Reference'!$A$2:$C$54,2,FALSE)","v":"Pillar G"},{"$f":"VLOOKUP($C105,'Article Reference'!$A$2:$C$54,3,FALSE)","v":"30 lbs bag"},59012784,76.874999999999986,0,0,0,0,{"$f":"IF(ISNA(VLOOKUP($C105,'Coverage Reference'!$B$4:$G$17,4,FALSE))=TRUE,0,VLOOKUP($C105,'Coverage Reference'!$B$4:$G$17,4,FALSE)*(E105+G105))","v":0},{"$f":"IF(ISNA(VLOOKUP($C105,'Coverage Reference'!$B$4:$G$17,5,FALSE))=TRUE,0,VLOOKUP($C105,'Coverage Reference'!$B$4:$G$17,5,FALSE)*(E105+G105))","v":0},{"$f":"IF(ISNA(VLOOKUP($C105,'Coverage Reference'!$B$4:$G$17,6,FALSE))=TRUE,0,VLOOKUP($C105,'Coverage Reference'!$B$4:$G$17,6,FALSE)*(E105+G105))","v":0}]
[{"$f":"VLOOKUP($C106,'Article Reference'!$A$2:$C$54,2,FALSE)","v":"Pillar G (New)"},{"$f":"VLOOKUP($C106,'Article Reference'!$A$2:$C$54,3,FALSE)","v":"15 lbs bag"},59017959,42.9375,0,0,0,0,{"$f":"IF(ISNA(VLOOKUP($C106,'Coverage Reference'!$B$4:$G$17,4,FALSE))=TRUE,0,VLOOKUP($C106,'Coverage Reference'!$B$4:$G$17,4,FALSE)*(E106+G106))","v":0},{"$f":"IF(ISNA(VLOOKUP($C106,'Coverage Reference'!$B$4:$G$17,5,FALSE))=TRUE,0,VLOOKUP($C106,'Coverage Reference'!$B$4:$G$17,5,FALSE)*(E106+G106))","v":0},{"$f":"IF(ISNA(VLOOKUP($C106,'Coverage Reference'!$B$4:$G$17,6,FALSE))=TRUE,0,VLOOKUP($C106,'Coverage Reference'!$B$4:$G$17,6,FALSE)*(E106+G106))","v":0}]
[{"$f":"VLOOKUP($C107,'Article Reference'!$A$2:$C$54,2,FALSE)","v":"Pylex Herbicide "},{"$f":"VLOOKUP($C107,'Article Reference'!$A$2:$C$54,3,FALSE)","v":"4x 8 fl oz"},59013624,2224.7999999999997,0,0,0,0,{"$f":"IF(ISNA(VLOOKUP($C107,'Coverage Reference'!$B$4:$G$17,4,FALSE))=TRUE,0,VLOOKUP($C107,'Coverage Reference'!$B$4:$G$17,4,FALSE)*(E107+G107))","v":0},{"$f":"IF(ISNA(VLOOKUP($C107,'Coverage Reference'!$B$4:$G$17,5,FALSE))=TRUE,0,VLOOKUP($C107,'Coverage Reference'!$B$4:$G$17,5,FALSE)*(E107+G107))","v":0},{"$f":"IF(ISNA(VLOOKUP($C107,'Coverage Reference'!$B$4:$G$17,6,FALSE))=TRUE,0,VLOOKUP($C107,'Coverage Reference'!$B$4:$G$17,6,FALSE)*(E107+G107))","v":0}]
[{"$f":"VLOOKUP($C108,'Article Reference'!$A$2:$C$54,2,FALSE)","v":"Segment II Herbicide"},{"$f":"VLOOKUP($C108,'Article Reference'!$A$2:$C$54,3,FALSE)","v":"2x 2.5 gal"},59014427,1175.625,0,0,0,0,{"$f":"IF(ISNA(VLOOKUP($C108,'Coverage Reference'!$B$4:$G$17,4,FALSE))=TRUE,0,VLOOKUP($C108,'Coverage Reference'!$B$4:$G$17,4,FALSE)*(E108+G108))","v":0},{"$f":"IF(ISNA(VLOOKUP($C108,'Coverage Reference'!$B$4:$G$17,5,FALSE))=TRUE,0,VLOOKUP($C108,'Coverage Reference'!$B$4:$G$17,5,FALSE)*(E108+G108))","v":0},{"$f":"IF(ISNA(VLOOKUP($C108,'Coverage Reference'!$B$4:$G$17,6,FALSE))=TRUE,0,VLOOKUP($C108,'Coverage Reference'!$B$4:$G$17,6,FALSE)*(E108+G108))","v":0}]
[{"$f":"VLOOKUP($C109,'Article Reference'!$A$2:$C$54,2,FALSE)","v":"Shakedown Anti Foam"},{"$f":"VLOOKUP($C109,'Article Reference'!$A$2:$C$54,3,FALSE)","v":"12x 1 qt"},59013697,179.0625,0,0,0,0,{"$f":"IF(ISNA(VLOOKUP($C109,'Coverage Reference'!$B$4:$G$17,4,FALSE))=TRUE,0,VLOOKUP($C109,'Coverage Reference'!$B$4:$G$17,4,FALSE)*(E109+G109))","v":0},{"$f":"IF(ISNA(VLOOKUP($C109,'Coverage Reference'!$B$4:$G$17,5,FALSE))=TRUE,0,VLOOKUP($C109,'Coverage Reference'!$B$4:$G$17,5,FALSE)*(E109+G109))","v":0},{"$f":"IF(ISNA(VLOOKUP($C109,'Coverage Reference'!$B$4:$G$17,6,FALSE))=TRUE,0,VLOOKUP($C109,'Coverage Reference'!$B$4:$G$17,6,FALSE)*(E109+G109))","v":0}]
[{"$f":"VLOOKUP($C110,'Article Reference'!$A$2:$C$54,2,FALSE)","v":"Siesta Fire Ant Bait"},{"$f":"VLOOKUP($C110,'Article Reference'!$A$2:$C$54,3,FALSE)","v":"15 lbs"},59011057,214.125,0,0,0,0,{"$f":"IF(ISNA(VLOOKUP($C110,'Coverage Reference'!$B$4:$G$17,4,FALSE))=TRUE,0,VLOOKUP($C110,'Coverage Reference'!$B$4:$G$17,4,FALSE)*(E110+G110))","v":0},{"$f":"IF(ISNA(VLOOKUP($C110,'Coverage Reference'!$B$4:$G$17,5,FALSE))=TRUE,0,VLOOKUP($C110,'Coverage Reference'!$B$4:$G$17,5,FALSE)*(E110+G110))","v":0},{"$f":"IF(ISNA(VLOOKUP($C110,'Coverage Reference'!$B$4:$G$17,6,FALSE))=TRUE,0,VLOOKUP($C110,'Coverage Reference'!$B$4:$G$17,6,FALSE)*(E110+G110))","v":0}]
[{"$f":"VLOOKUP($C111,'Article Reference'!$A$2:$C$54,2,FALSE)","v":"Sprint 330 Iron Chelate "},{"$f":"VLOOKUP($C111,'Article Reference'!$A$2:$C$54,3,FALSE)","v":"6x5 lbs"},59014404,330,0,0,0,0,{"$f":"IF(ISNA(VLOOKUP($C111,'Coverage Reference'!$B$4:$G$17,4,FALSE))=TRUE,0,VLOOKUP($C111,'Coverage Reference'!$B$4:$G$17,4,FALSE)*(E111+G111))","v":0},{"$f":"IF(ISNA(VLOOKUP($C111,'Coverage Reference'!$B$4:$G$17,5,FALSE))=TRUE,0,VLOOKUP($C111,'Coverage Reference'!$B$4:$G$17,5,FALSE)*(E111+G111))","v":0},{"$f":"IF(ISNA(VLOOKUP($C111,'Coverage Reference'!$B$4:$G$17,6,FALSE))=TRUE,0,VLOOKUP($C111,'Coverage Reference'!$B$4:$G$17,6,FALSE)*(E111+G111))","v":0}]
[{"$f":"VLOOKUP($C112,'Article Reference'!$A$2:$C$54,2,FALSE)","v":"Sprint 330 Iron Chelate "},{"$f":"VLOOKUP($C112,'Article Reference'!$A$2:$C$54,3,FALSE)","v":"1x50 lbs"},59014406,485,0,0,0,0,{"$f":"IF(ISNA(VLOOKUP($C112,'Coverage Reference'!$B$4:$G$17,4,FALSE))=TRUE,0,VLOOKUP($C112,'Coverage Reference'!$B$4:$G$17,4,FALSE)*(E112+G112))","v":0},{"$f":"IF(ISNA(VLOOKUP($C112,'Coverage Reference'!$B$4:$G$17,5,FALSE))=TRUE,0,VLOOKUP($C112,'Coverage Reference'!$B$4:$G$17,5,FALSE)*(E112+G112))","v":0},{"$f":"IF(ISNA(VLOOKUP($C112,'Coverage Reference'!$B$4:$G$17,6,FALSE))=TRUE,0,VLOOKUP($C112,'Coverage Reference'!$B$4:$G$17,6,FALSE)*(E112+G112))","v":0}]
[{"$f":"VLOOKUP($C113,'Article Reference'!$A$2:$C$54,2,FALSE)","v":"Trinity Fungicide"},{"$f":"VLOOKUP($C113,'Article Reference'!$A$2:$C$54,3,FALSE)","v":"2x2.5gal"},59011038,1155.0625,0,0,0,0,{"$f":"IF(ISNA(VLOOKUP($C113,'Coverage Reference'!$B$4:$G$17,4,FALSE))=TRUE,0,VLOOKUP($C113,'Coverage Reference'!$B$4:$G$17,4,FALSE)*(E113+G113))","v":0},{"$f":"IF(ISNA(VLOOKUP($C113,'Coverage Reference'!$B$4:$G$17,5,FALSE))=TRUE,0,VLOOKUP($C113,'Coverage Reference'!$B$4:$G$17,5,FALSE)*(E113+G113))","v":0},{"$f":"IF(ISNA(VLOOKUP($C113,'Coverage Reference'!$B$4:$G$17,6,FALSE))=TRUE,0,VLOOKUP($C113,'Coverage Reference'!$B$4:$G$17,6,FALSE)*(E113+G113))","v":0}]
[{"$f":"VLOOKUP($C114,'Article Reference'!$A$2:$C$54,2,FALSE)","v":"Turf Mark"},{"$f":"VLOOKUP($C114,'Article Reference'!$A$2:$C$54,3,FALSE)","v":"12 x .25 gal"},59013723,195.45,0,0,0,0,{"$f":"IF(ISNA(VLOOKUP($C114,'Coverage Reference'!$B$4:$G$17,4,FALSE))=TRUE,0,VLOOKUP($C114,'Coverage Reference'!$B$4:$G$17,4,FALSE)*(E114+G114))","v":0},{"$f":"IF(ISNA(VLOOKUP($C114,'Coverage Reference'!$B$4:$G$17,5,FALSE))=TRUE,0,VLOOKUP($C114,'Coverage Reference'!$B$4:$G$17,5,FALSE)*(E114+G114))","v":0},{"$f":"IF(ISNA(VLOOKUP($C114,'Coverage Reference'!$B$4:$G$17,6,FALSE))=TRUE,0,VLOOKUP($C114,'Coverage Reference'!$B$4:$G$17,6,FALSE)*(E114+G114))","v":0}]
[{"$f":"VLOOKUP($C115,'Article Reference'!$A$2:$C$54,2,FALSE)","v":"Turf Mark"},{"$f":"VLOOKUP($C115,'Article Reference'!$A$2:$C$54,3,FALSE)","v":"1 x 30 gal"},59013314,1231.5,0,0,0,0,{"$f":"IF(ISNA(VLOOKUP($C115,'Coverage Reference'!$B$4:$G$17,4,FALSE))=TRUE,0,VLOOKUP($C115,'Coverage Reference'!$B$4:$G$17,4,FALSE)*(E115+G115))","v":0},{"$f":"IF(ISNA(VLOOKUP($C115,'Coverage Reference'!$B$4:$G$17,5,FALSE))=TRUE,0,VLOOKUP($C115,'Coverage Reference'!$B$4:$G$17,5,FALSE)*(E115+G115))","v":0},{"$f":"IF(ISNA(VLOOKUP($C115,'Coverage Reference'!$B$4:$G$17,6,FALSE))=TRUE,0,VLOOKUP($C115,'Coverage Reference'!$B$4:$G$17,6,FALSE)*(E115+G115))","v":0}]
[{"$f":"VLOOKUP($C116,'Article Reference'!$A$2:$C$54,2,FALSE)","v":"Turf Mark Blue"},{"$f":"VLOOKUP($C116,'Article Reference'!$A$2:$C$54,3,FALSE)","v":"2x 2.5 gal"},59013417,217.1875,0,0,0,0,{"$f":"IF(ISNA(VLOOKUP($C116,'Coverage Reference'!$B$4:$G$17,4,FALSE))=TRUE,0,VLOOKUP($C116,'Coverage Reference'!$B$4:$G$17,4,FALSE)*(E116+G116))","v":0},{"$f":"IF(ISNA(VLOOKUP($C116,'Coverage Reference'!$B$4:$G$17,5,FALSE))=TRUE,0,VLOOKUP($C116,'Coverage Reference'!$B$4:$G$17,5,FALSE)*(E116+G116))","v":0},{"$f":"IF(ISNA(VLOOKUP($C116,'Coverage Reference'!$B$4:$G$17,6,FALSE))=TRUE,0,VLOOKUP($C116,'Coverage Reference'!$B$4:$G$17,6,FALSE)*(E116+G116))","v":0}]
[{"$f":"VLOOKUP($C117,'Article Reference'!$A$2:$C$54,2,FALSE)","v":"Turf Mark Green"},{"$f":"VLOOKUP($C117,'Article Reference'!$A$2:$C$54,3,FALSE)","v":"2x 2.5 gal"},59013486,264.0625,0,0,0,0,{"$f":"IF(ISNA(VLOOKUP($C117,'Coverage Reference'!$B$4:$G$17,4,FALSE))=TRUE,0,VLOOKUP($C117,'Coverage Reference'!$B$4:$G$17,4,FALSE)*(E117+G117))","v":0},{"$f":"IF(ISNA(VLOOKUP($C117,'Coverage Reference'!$B$4:$G$17,5,FALSE))=TRUE,0,VLOOKUP($C117,'Coverage Reference'!$B$4:$G$17,5,FALSE)*(E117+G117))","v":0},{"$f":"IF(ISNA(VLOOKUP($C117,'Coverage Reference'!$B$4:$G$17,6,FALSE))=TRUE,0,VLOOKUP($C117,'Coverage Reference'!$B$4:$G$17,6,FALSE)*(E117+G117))","v":0}]
["NON-AGENCY SUB-TOTAL",null,null,null,null,{"$f":"SUM(F88:F117)","v":0},null,{"$f":"SUM(H88:H117)","v":0},{"$f":"H118+F118","v":0}]
[]
[]
[]
[]
["BASF has developed this calculator using formulas that approximate the rebate amount under the 2019 Early Order Program.  The calculator is being shared with you for information purposes only and for your private use in preparing your own calculations. While every effort has been made to ensure the accuracy and reliability of the information and formulas, no guarantee is given nor responsibility taken by BASF for the accuracy of the calculator or the applicability to your particular circumstances.\n\nBASF PROVIDES THIS CALCULATOR AND ANY RESULT THEREFROM AS IS WITH ALL FAULTS AND WITH NO WARRANTY WHATSOEVER, EITHER EXPRESS OR IMPLIED, INCLUDING ANY WARRANTIES OF MERCHANTABILITY AND FITNESS FOR PARTICULAR PURPOSE.  YOU ASSUME ANY AND ALL RISKS IN USING THE CALCULATOR AND RELYING ON THE INFORMATION CONTAINED HEREIN.  IN NO CIRCUMSTANCES SHALL BASF BE LIABLE FOR ANY DAMAGES WHATSOEVER, INCLUDING BUT NOT LIMITED TO LOSS OF PROFIT, LOSS OF BUSINESS, LOSS OF SAVINGS, OR CONSEQUENTIAL DAMAGES, EVEN IF BASF HAS BEEN NOTIFIED AS SUCH."]

{"sheet":"Step 2 - Manage Applications","index":1,"n_rows":38,"n_cols":13,"rows_kept":38,"cut":false,"hidden":false,"merged":[[16,0,16,1],[15,0,15,1],[20,7,20,8],[20,5,20,6],[20,3,20,4],[19,0,19,8],[37,0,44,8],[22,0,23,0],[20,2,21,2],[28,0,30,0],[26,0,27,0],[24,0,25,0],[20,0,21,0],[20,1,21,1],[33,0,34,0]]}
[]
[]
[]
[]
[]
[]
[]
[]
[]
[]
[]
[]
[]
[]
["Enter Acres for your Course (Required)"]
["Fairways & Tees Acres",null,0]
["Greens Acres",null,0]
[]
["Please complete Yellow \"Use Area\" cells with either Fairways or Greens"]
["Fungicide Planner",null,null,null,null,null,null,null,null,null,null,null,"Fairways"]
["Product Name","Case Size","Use Area","Low Rate",null,"Mid Rate",null,"High Rate",null,null,null,null,"Greens"]
[null,null,null,"Total Acres","Applications","Total Acres","Applications","Total Acres","Applications"]
["Xzemplar","2 x 114 oz",null,{"$f":"SUMIFS('Step 1 - Make Selections'!I$26:I$85,'Step 1 - Make Selections'!$C$26:$C$85,$K23)+SUMIFS('Step 1 - Make Selections'!I$88:I$117,'Step 1 - Make Selections'!$C$88:$C$117,$K23)","v":0},{"$f":"IF(OR($C$16=0,$C$17=0),\"Please Enter Acreage\",IF(C23=\"Greens\",D23/$C$17,IF(C23=\"Fairways\",D23/$C$16,0)))","v":"Please Enter Acreage"},{"$f":"SUMIFS('Step 1 - Make Selections'!J$26:J$85,'Step 1 - Make Selections'!$C$26:$C$85,$K23)+SUMIFS('Step 1 - Make Selections'!J$88:J$117,'Step 1 - Make Selections'!$C$88:$C$117,$K23)","v":0},{"$f":"IF(OR($C$16=0,$C$17=0),\"Please Enter Acreage\",IF(C23=\"Greens\",F23/$C$17,IF(C23=\"Fairways\",F23/$C$16,0)))","v":"Please Enter Acreage"},{"$f":"SUMIFS('Step 1 - Make Selections'!K$26:K$85,'Step 1 - Make Selections'!$C$26:$C$85,$K23)+SUMIFS('Step 1 - Make Selections'!K$88:K$117,'Step 1 - Make Selections'!$C$88:$C$117,$K23)","v":0},{"$f":"IF(OR($C$16=0,$C$17=0),\"Please Enter Acreage\",IF(C23=\"Greens\",H23/$C$17,IF(C23=\"Fairways\",H23/$C$16,0)))","v":"Please Enter Acreage"},null,59013833]
[null,"4 x 11.4 oz",null,{"$f":"SUMIFS('Step 1 - Make Selections'!I$26:I$85,'Step 1 - Make Selections'!$C$26:$C$85,$K24)+SUMIFS('Step 1 - Make Selections'!I$88:I$117,'Step 1 - Make Selections'!$C$88:$C$117,$K24)","v":0},"Please Enter Acreage",{"$f":"SUMIFS('Step 1 - Make Selections'!J$26:J$85,'Step 1 - Make Selections'!$C$26:$C$85,$K24)+SUMIFS('Step 1 - Make Selections'!J$88:J$117,'Step 1 - Make Selections'!$C$88:$C$117,$K24)","v":0},{"$f":"IF(OR($C$16=0,$C$17=0),\"Please Enter Acreage\",IF(C24=\"Greens\",F24/$C$17,IF(C24=\"Fairways\",F24/$C$16,0)))","v":"Please Enter Acreage"},{"$f":"SUMIFS('Step 1 - Make Selections'!K$26:K$85,'Step 1 - Make Selections'!$C$26:$C$85,$K24)+SUMIFS('Step 1 - Make Selections'!K$88:K$117,'Step 1 - Make Selections'!$C$88:$C$117,$K24)","v":0},"Please Enter Acreage",null,59014120]
["Emerald","10 x .49 lb.",null,{"$f":"SUMIFS('Step 1 - Make Selections'!I$26:I$85,'Step 1 - Make Selections'!$C$26:$C$85,$K25)+SUMIFS('Step 1 - Make Selections'!I$88:I$117,'Step 1 - Make Selections'!$C$88:$C$117,$K25)","v":0},"Please Enter Acreage",{"$f":"SUMIFS('Step 1 - Make Selections'!J$26:J$85,'Step 1 - Make Selections'!$C$26:$C$85,$K25)+SUMIFS('Step 1 - Make Selections'!J$88:J$117,'Step 1 - Make Selections'!$C$88:$C$117,$K25)","v":0},{"$f":"IF(OR($C$16=0,$C$17=0),\"Please Enter Acreage\",IF(C25=\"Greens\",F25/$C$17,IF(C25=\"Fairways\",F25/$C$16,0)))","v":"Please Enter Acreage"},{"$f":"SUMIFS('Step 1 - Make Selections'!K$26:K$85,'Step 1 - Make Selections'!$C$26:$C$85,$K25)+SUMIFS('Step 1 - Make Selections'!K$88:K$117,'Step 1 - Make Selections'!$C$88:$C$117,$K25)","v":0},"Please Enter Acreage",null,59021463]
[null,"50 x .49 lb.",null,{"$f":"SUMIFS('Step 1 - Make Selections'!I$26:I$85,'Step 1 - Make Selections'!$C$26:$C$85,$K26)+SUMIFS('Step 1 - Make Selections'!I$88:I$117,'Step 1 - Make Selections'!$C$88:$C$117,$K26)","v":0},"Please Enter Acreage",{"$f":"SUMIFS('Step 1 - Make Selections'!J$26:J$85,'Step 1 - Make Selections'!$C$26:$C$85,$K26)+SUMIFS('Step 1 - Make Selections'!J$88:J$117,'Step 1 - Make Selections'!$C$88:$C$117,$K26)","v":0},"Please Enter Acreage",{"$f":"SUMIFS('Step 1 - Make Selections'!K$26:K$85,'Step 1 - Make Selections'!$C$26:$C$85,$K26)+SUMIFS('Step 1 - Make Selections'!K$88:K$117,'Step 1 - Make Selections'!$C$88:$C$117,$K26)","v":0},"Please Enter Acreage",null,59012825]
["Honor","1 x 36 lb",null,{"$f":"SUMIFS('Step 1 - Make Selections'!I$26:I$85,'Step 1 - Make Selections'!$C$26:$C$85,$K27)+SUMIFS('Step 1 - Make Selections'!I$88:I$117,'Step 1 - Make Selections'!$C$88:$C$117,$K27)","v":0},"Please Enter Acreage",{"$f":"SUMIFS('Step 1 - Make Selections'!J$26:J$85,'Step 1 - Make Selections'!$C$26:$C$85,$K27)+SUMIFS('Step 1 - Make Selections'!J$88:J$117,'Step 1 - Make Selections'!$C$88:$C$117,$K27)","v":0},{"$f":"IF(OR($C$16=0,$C$17=0),\"Please Enter Acreage\",IF(C27=\"Greens\",F27/$C$17,IF(C27=\"Fairways\",F27/$C$16,0)))","v":"Please Enter Acreage"},{"$f":"SUMIFS('Step 1 - Make Selections'!K$26:K$85,'Step 1 - Make Selections'!$C$26:$C$85,$K27)+SUMIFS('Step 1 - Make Selections'!K$88:K$117,'Step 1 - Make Selections'!$C$88:$C$117,$K27)","v":0},"Please Enter Acreage",null,59012885]
[null,"6 x 3 lb",null,{"$f":"SUMIFS('Step 1 - Make Selections'!I$26:I$85,'Step 1 - Make Selections'!$C$26:$C$85,$K28)+SUMIFS('Step 1 - Make Selections'!I$88:I$117,'Step 1 - Make Selections'!$C$88:$C$117,$K28)","v":0},"Please Enter Acreage",{"$f":"SUMIFS('Step 1 - Make Selections'!J$26:J$85,'Step 1 - Make Selections'!$C$26:$C$85,$K28)+SUMIFS('Step 1 - Make Selections'!J$88:J$117,'Step 1 - Make Selections'!$C$88:$C$117,$K28)","v":0},"Please Enter Acreage",{"$f":"SUMIFS('Step 1 - Make Selections'!K$26:K$85,'Step 1 - Make Selections'!$C$26:$C$85,$K28)+SUMIFS('Step 1 - Make Selections'!K$88:K$117,'Step 1 - Make Selections'!$C$88:$C$117,$K28)","v":0},"Please Enter Acreage",null,59012350]
["Insignia SC","4 x 30.5 fl oz",null,{"$f":"SUMIFS('Step 1 - Make Selections'!I$26:I$85,'Step 1 - Make Selections'!$C$26:$C$85,$K29)+SUMIFS('Step 1 - Make Selections'!I$88:I$117,'Step 1 - Make Selections'!$C$88:$C$117,$K29)","v":0},"Please Enter Acreage",{"$f":"SUMIFS('Step 1 - Make Selections'!J$26:J$85,'Step 1 - Make Selections'!$C$26:$C$85,$K29)+SUMIFS('Step 1 - Make Selections'!J$88:J$117,'Step 1 - Make Selections'!$C$88:$C$117,$K29)","v":0},{"$f":"IF(OR($C$16=0,$C$17=0),\"Please Enter Acreage\",IF(C29=\"Greens\",F29/$C$17,IF(C29=\"Fairways\",F29/$C$16,0)))","v":"Please Enter Acreage"},{"$f":"SUMIFS('Step 1 - Make Selections'!K$26:K$85,'Step 1 - Make Selections'!$C$26:$C$85,$K29)+SUMIFS('Step 1 - Make Selections'!K$88:K$117,'Step 1 - Make Selections'!$C$88:$C$117,$K29)","v":0},"Please Enter Acreage",null,59014134]
[null,"4 x 122 fl oz",null,{"$f":"SUMIFS('Step 1 - Make Selections'!I$26:I$85,'Step 1 - Make Selections'!$C$26:$C$85,$K30)+SUMIFS('Step 1 - Make Selections'!I$88:I$117,'Step 1 - Make Selections'!$C$88:$C$117,$K30)","v":0},"Please Enter Acreage",{"$f":"SUMIFS('Step 1 - Make Selections'!J$26:J$85,'Step 1 - Make Selections'!$C$26:$C$85,$K30)+SUMIFS('Step 1 - Make Selections'!J$88:J$117,'Step 1 - Make Selections'!$C$88:$C$117,$K30)","v":0},"Please Enter Acreage",{"$f":"SUMIFS('Step 1 - Make Selections'!K$26:K$85,'Step 1 - Make Selections'!$C$26:$C$85,$K30)+SUMIFS('Step 1 - Make Selections'!K$88:K$117,'Step 1 - Make Selections'!$C$88:$C$117,$K30)","v":0},"Please Enter Acreage",null,59012450]
[null,"2x 2.5 gal",null,{"$f":"SUMIFS('Step 1 - Make Selections'!I$26:I$85,'Step 1 - Make Selections'!$C$26:$C$85,$K31)+SUMIFS('Step 1 - Make Selections'!I$88:I$117,'Step 1 - Make Selections'!$C$88:$C$117,$K31)","v":0},"Please Enter Acreage",{"$f":"SUMIFS('Step 1 - Make Selections'!J$26:J$85,'Step 1 - Make Selections'!$C$26:$C$85,$K31)+SUMIFS('Step 1 - Make Selections'!J$88:J$117,'Step 1 - Make Selections'!$C$88:$C$117,$K31)","v":0},"Please Enter Acreage",{"$f":"SUMIFS('Step 1 - Make Selections'!K$26:K$85,'Step 1 - Make Selections'!$C$26:$C$85,$K31)+SUMIFS('Step 1 - Make Selections'!K$88:K$117,'Step 1 - Make Selections'!$C$88:$C$117,$K31)","v":0},"Please Enter Acreage",null,59014135]
["Trinity","2 x 2.5 gal",null,{"$f":"SUMIFS('Step 1 - Make Selections'!I$26:I$85,'Step 1 - Make Selections'!$C$26:$C$85,$K32)+SUMIFS('Step 1 - Make Selections'!I$88:I$117,'Step 1 - Make Selections'!$C$88:$C$117,$K32)","v":0},"Please Enter Acreage",{"$f":"SUMIFS('Step 1 - Make Selections'!J$26:J$85,'Step 1 - Make Selections'!$C$26:$C$85,$K32)+SUMIFS('Step 1 - Make Selections'!J$88:J$117,'Step 1 - Make Selections'!$C$88:$C$117,$K32)","v":0},{"$f":"IF(OR($C$16=0,$C$17=0),\"Please Enter Acreage\",IF(C32=\"Greens\",F32/$C$17,IF(C32=\"Fairways\",F32/$C$16,0)))","v":"Please Enter Acreage"},{"$f":"SUMIFS('Step 1 - Make Selections'!K$26:K$85,'Step 1 - Make Selections'!$C$26:$C$85,$K32)+SUMIFS('Step 1 - Make Selections'!K$88:K$117,'Step 1 - Make Selections'!$C$88:$C$117,$K32)","v":0},"Please Enter Acreage",null,59011038]
["Lexicon","4 x 21 oz",null,{"$f":"SUMIFS('Step 1 - Make Selections'!I$26:I$85,'Step 1 - Make Selections'!$C$26:$C$85,$K33)+SUMIFS('Step 1 - Make Selections'!I$88:I$117,'Step 1 - Make Selections'!$C$88:$C$117,$K33)","v":0},"Please Enter Acreage",{"$f":"SUMIFS('Step 1 - Make Selections'!J$26:J$85,'Step 1 - Make Selections'!$C$26:$C$85,$K33)+SUMIFS('Step 1 - Make Selections'!J$88:J$117,'Step 1 - Make Selections'!$C$88:$C$117,$K33)","v":0},"Please Enter Acreage",{"$f":"SUMIFS('Step 1 - Make Selections'!K$26:K$85,'Step 1 - Make Selections'!$C$26:$C$85,$K33)+SUMIFS('Step 1 - Make Selections'!K$88:K$117,'Step 1 - Make Selections'!$C$88:$C$117,$K33)","v":0},"Please Enter Acreage",null,59013840]
["Pillar G Intrinsic","15 lb.",null,{"$f":"SUMIFS('Step 1 - Make Selections'!I$26:I$85,'Step 1 - Make Selections'!$C$26:$C$85,$K34)+SUMIFS('Step 1 - Make Selections'!I$88:I$117,'Step 1 - Make Selections'!$C$88:$C$117,$K34)","v":0},{"$f":"IF(OR($C$16=0,$C$17=0),\"Please Enter Acreage\",IF(C34=\"Greens\",D34/$C$17,IF(C34=\"Fairways\",D34/$C$16,0)))","v":"Please Enter Acreage"},{"$f":"SUMIFS('Step 1 - Make Selections'!J$26:J$85,'Step 1 - Make Selections'!$C$26:$C$85,$K34)+SUMIFS('Step 1 - Make Selections'!J$88:J$117,'Step 1 - Make Selections'!$C$88:$C$117,$K34)","v":0},{"$f":"IF(OR($C$16=0,$C$17=0),\"Please Enter Acreage\",IF(C34=\"Greens\",F34/$C$17,IF(C34=\"Fairways\",F34/$C$16,0)))","v":"Please Enter Acreage"},{"$f":"SUMIFS('Step 1 - Make Selections'!K$26:K$85,'Step 1 - Make Selections'!$C$26:$C$85,$K34)+SUMIFS('Step 1 - Make Selections'!K$88:K$117,'Step 1 - Make Selections'!$C$88:$C$117,$K34)","v":0},{"$f":"IF(OR($C$16=0,$C$17=0),\"Please Enter Acreage\",IF(C34=\"Greens\",H34/$C$17,IF(C34=\"Fairways\",H34/$C$16,0)))","v":"Please Enter Acreage"},null,59017959]
[null,"30 lb.",null,{"$f":"SUMIFS('Step 1 - Make Selections'!I$26:I$85,'Step 1 - Make Selections'!$C$26:$C$85,$K35)+SUMIFS('Step 1 - Make Selections'!I$88:I$117,'Step 1 - Make Selections'!$C$88:$C$117,$K35)","v":0},"Please Enter Acreage",{"$f":"SUMIFS('Step 1 - Make Selections'!J$26:J$85,'Step 1 - Make Selections'!$C$26:$C$85,$K35)+SUMIFS('Step 1 - Make Selections'!J$88:J$117,'Step 1 - Make Selections'!$C$88:$C$117,$K35)","v":0},"Please Enter Acreage",{"$f":"SUMIFS('Step 1 - Make Selections'!K$26:K$85,'Step 1 - Make Selections'!$C$26:$C$85,$K35)+SUMIFS('Step 1 - Make Selections'!K$88:K$117,'Step 1 - Make Selections'!$C$88:$C$117,$K35)","v":0},"Please Enter Acreage",null,59012784]
[]
[]
["BASF has developed this calculator using formulas that approximate the rebate amount under the 2018 Early Order Program.  The calculator is being shared with you for information purposes only and for your private use in preparing your own calculations. While every effort has been made to ensure the accuracy and reliability of the information and formulas, no guarantee is given nor responsibility taken by BASF for the accuracy of the calculator or the applicability to your particular circumstances.\n\nBASF PROVIDES THIS CALCULATOR AND ANY RESULT THEREFROM AS IS WITH ALL FAULTS AND WITH NO WARRANTY WHATSOEVER, EITHER EXPRESS OR IMPLIED, INCLUDING ANY WARRANTIES OF MERCHANTABILITY AND FITNESS FOR PARTICULAR PURPOSE.  YOU ASSUME ANY AND ALL RISKS IN USING THE CALCULATOR AND RELYING ON THE INFORMATION CONTAINED HEREIN.  IN NO CIRCUMSTANCES SHALL BASF BE LIABLE FOR ANY DAMAGES WHATSOEVER, INCLUDING BUT NOT LIMITED TO LOSS OF PROFIT, LOSS OF BUSINESS, LOSS OF SAVINGS, OR CONSEQUENTIAL DAMAGES, EVEN IF BASF HAS BEEN NOTIFIED AS SUCH."]

{"sheet":"Step 3 - Review Order","index":2,"n_rows":86,"n_cols":6,"rows_kept":86,"cut":false,"hidden":false,"merged":[[21,2,22,3],[85,0,94,5]]}
[]
[]
[]
[]
[]
[]
[]
[]
[]
[]
[]
[]
[{"$f":"NOW()","v":"2018-09-12T15:12:33.450"}]
["Order For","Order Prepared By",null,"Rebate Summary"]
["<Enter Customer Name>","<Enter Name>",null,"Total Purchase",null,{"$f":"'Step 1 - Make Selections'!G16","v":0}]
["<Enter Business Name>","<Enter Business Name>",null,"Rebate Level Attained",null,{"$f":"'Step 1 - Make Selections'!B20","v":0}]
["<City, ST Zip Code>","<City, ST Zip Code>",null,"Total Spend Rebate",null,{"$f":"'Step 1 - Make Selections'!G21","v":"Not Achieved"}]
["<Phone>","<Phone>",null,"Intrinsic Rebate",null,{"$f":"'Step 1 - Make Selections'!G22","v":"Not Achieved"}]
["<email address>","<email address>",null,"Total EOP Rebate",null,{"$f":"'Step 1 - Make Selections'!G23","v":0}]
[]
[]
[]
["Your Order Detail"]
[]
["Product / Cubes","Package","Article No.","Price","Quantity","Total"]
["Multi-course Fairway Cube","Cube",59014559,34526,{"$f":"VLOOKUP(C26,'Step 1 - Make Selections'!$C$26:$G$117,3,FALSE)+VLOOKUP(C26,'Step 1 - Make Selections'!$C$26:$G$117,5,FALSE)","v":0},{"$f":"E26*D26","v":0}]
["Championship Conditions Cube","Cube",59017724,28642,{"$f":"VLOOKUP(C27,'Step 1 - Make Selections'!$C$26:$G$117,3,FALSE)+VLOOKUP(C27,'Step 1 - Make Selections'!$C$26:$G$117,5,FALSE)","v":0},{"$f":"E27*D27","v":0}]
["Fairway Defense Cube","Cube",59016551,15425,{"$f":"VLOOKUP(C28,'Step 1 - Make Selections'!$C$26:$G$117,3,FALSE)+VLOOKUP(C28,'Step 1 - Make Selections'!$C$26:$G$117,5,FALSE)","v":0},0]
["Dollar Spot Foundation Cube","Cube",59014560,14028,{"$f":"VLOOKUP(C29,'Step 1 - Make Selections'!$C$26:$G$117,3,FALSE)+VLOOKUP(C29,'Step 1 - Make Selections'!$C$26:$G$117,5,FALSE)","v":0},0]
["Greens Protector Cube","Cube",59017725,9479,{"$f":"VLOOKUP(C30,'Step 1 - Make Selections'!$C$26:$G$117,3,FALSE)+VLOOKUP(C30,'Step 1 - Make Selections'!$C$26:$G$117,5,FALSE)","v":0},0]
["Plant Health Cube","Cube",59014232,9133,{"$f":"VLOOKUP(C31,'Step 1 - Make Selections'!$C$26:$G$117,3,FALSE)+VLOOKUP(C31,'Step 1 - Make Selections'!$C$26:$G$117,5,FALSE)","v":0},0]
["New Innovation Cube","Cube",59014244,7788,{"$f":"VLOOKUP(C32,'Step 1 - Make Selections'!$C$26:$G$117,3,FALSE)+VLOOKUP(C32,'Step 1 - Make Selections'!$C$26:$G$117,5,FALSE)","v":0},0]
["Fairway Building Block Cube","Cube",59014398,6312,{"$f":"VLOOKUP(C33,'Step 1 - Make Selections'!$C$26:$G$117,3,FALSE)+VLOOKUP(C33,'Step 1 - Make Selections'!$C$26:$G$117,5,FALSE)","v":0},0]
["Greens Foundation Cube","Cube",59014396,6191,{"$f":"VLOOKUP(C34,'Step 1 - Make Selections'!$C$26:$G$117,3,FALSE)+VLOOKUP(C34,'Step 1 - Make Selections'!$C$26:$G$117,5,FALSE)","v":0},0]
["Warm Season Zone Herbicide Cube","Cube",59017962,3610,{"$f":"VLOOKUP(C35,'Step 1 - Make Selections'!$C$26:$G$117,3,FALSE)+VLOOKUP(C35,'Step 1 - Make Selections'!$C$26:$G$117,5,FALSE)","v":0},0]
["Cool Season Zone Herbicide Cube","Cube",59017954,2461,{"$f":"VLOOKUP(C36,'Step 1 - Make Selections'!$C$26:$G$117,3,FALSE)+VLOOKUP(C36,'Step 1 - Make Selections'!$C$26:$G$117,5,FALSE)","v":0},0]
["Emerald® Fungicide","10 x 0.49 lb",59021463,1622.8799999999999,{"$f":"VLOOKUP(C37,'Step 1 - Make Selections'!$C$68:$G$117,3,FALSE)+VLOOKUP(C37,'Step 1 - Make Selections'!$C$68:$G$117,5,FALSE)","v":0},0]
["Emerald® Fungicide","50 x 0.49 lb",59012825,7074.8649999999998,{"$f":"VLOOKUP(C38,'Step 1 - Make Selections'!$C$68:$G$117,3,FALSE)+VLOOKUP(C38,'Step 1 - Make Selections'!$C$68:$G$117,5,FALSE)","v":0},{"$f":"E38*D38","v":0}]
["Honor® Intrinsic™ Brand Fungicide","1 x 36 lb",59012885,4027.32,{"$f":"VLOOKUP(C39,'Step 1 - Make Selections'!$C$68:$G$117,3,FALSE)+VLOOKUP(C39,'Step 1 - Make Selections'!$C$68:$G$117,5,FALSE)","v":0},0]
["Honor® Intrinsic™ Brand Fungicide","6 x 3 lb",59012350,2707.7400000000002,{"$f":"VLOOKUP(C40,'Step 1 - Make Selections'!$C$68:$G$117,3,FALSE)+VLOOKUP(C40,'Step 1 - Make Selections'!$C$68:$G$117,5,FALSE)","v":0},0]
["Insignia® SC Intrinsic™ Brand Fungicide","2x 2.5 gal",59014135,5997.8499999999995,{"$f":"VLOOKUP(C41,'Step 1 - Make Selections'!$C$68:$G$117,3,FALSE)+VLOOKUP(C41,'Step 1 - Make Selections'!$C$68:$G$117,5,FALSE)","v":0},0]
["Insignia® SC Intrinsic™ Brand Fungicide","4 x 122 fl oz",59012450,6592.88,{"$f":"VLOOKUP(C42,'Step 1 - Make Selections'!$C$68:$G$117,3,FALSE)+VLOOKUP(C42,'Step 1 - Make Selections'!$C$68:$G$117,5,FALSE)","v":0},0]
["Insignia® SC Intrinsic™ Brand Fungicide","4 x 30.5 fl oz",59014134,1760.46,{"$f":"VLOOKUP(C43,'Step 1 - Make Selections'!$C$68:$G$117,3,FALSE)+VLOOKUP(C43,'Step 1 - Make Selections'!$C$68:$G$117,5,FALSE)","v":0},0]
["Lexicon® Intrinsic™ Brand Fungicide","4x 21 oz",59013840,2003.4,{"$f":"VLOOKUP(C44,'Step 1 - Make Selections'!$C$68:$G$117,3,FALSE)+VLOOKUP(C44,'Step 1 - Make Selections'!$C$68:$G$117,5,FALSE)","v":0},0]
["Orkestra™ Intrinsic™ Brand Fungicide","4x 16 oz",59014379,563.20000000000005,{"$f":"VLOOKUP(C45,'Step 1 - Make Selections'!$C$68:$G$117,3,FALSE)+VLOOKUP(C45,'Step 1 - Make Selections'!$C$68:$G$117,5,FALSE)","v":0},0]
["Pageant® Intrinsic™ Brand Fungicide","4 x 1 lb",59012349,373.56,{"$f":"VLOOKUP(C46,'Step 1 - Make Selections'!$C$68:$G$117,3,FALSE)+VLOOKUP(C46,'Step 1 - Make Selections'!$C$68:$G$117,5,FALSE)","v":0},0]
["Pageant® Intrinsic™ Brand Fungicide","4 x 12 lb",59012429,4150.08,{"$f":"VLOOKUP(C47,'Step 1 - Make Selections'!$C$68:$G$117,3,FALSE)+VLOOKUP(C47,'Step 1 - Make Selections'!$C$68:$G$117,5,FALSE)","v":0},0]
["Pendulum® AquaCap™ Bulk Herbicide","110 gal",59049202,5500,{"$f":"VLOOKUP(C48,'Step 1 - Make Selections'!$C$68:$G$117,3,FALSE)+VLOOKUP(C48,'Step 1 - Make Selections'!$C$68:$G$117,5,FALSE)","v":0},0]
["Pendulum® AquaCap™ Bulk Herbicide",220,59049202,11000,{"$f":"VLOOKUP(C49,'Step 1 - Make Selections'!$C$68:$G$117,3,FALSE)+VLOOKUP(C49,'Step 1 - Make Selections'!$C$68:$G$117,5,FALSE)","v":0},0]
["Pendulum® AquaCap™ Herbicide","1 x 15 gal",59011279,750,{"$f":"VLOOKUP(C50,'Step 1 - Make Selections'!$C$68:$G$117,3,FALSE)+VLOOKUP(C50,'Step 1 - Make Selections'!$C$68:$G$117,5,FALSE)","v":0},0]
["Sultan™ Miticide","4x 0.125 gal",59014112,629.02499999999998,{"$f":"VLOOKUP(C51,'Step 1 - Make Selections'!$C$68:$G$117,3,FALSE)+VLOOKUP(C51,'Step 1 - Make Selections'!$C$68:$G$117,5,FALSE)","v":0},0]
["Tower® Herbicide","2 x 2.5 gal",59014247,1527,{"$f":"VLOOKUP(C52,'Step 1 - Make Selections'!$C$68:$G$117,3,FALSE)+VLOOKUP(C52,'Step 1 - Make Selections'!$C$68:$G$117,5,FALSE)","v":0},0]
["Xzemplar™ Fungicide","2x 114 oz",59013833,3691.32,{"$f":"VLOOKUP(C53,'Step 1 - Make Selections'!$C$68:$G$117,3,FALSE)+VLOOKUP(C53,'Step 1 - Make Selections'!$C$68:$G$117,5,FALSE)","v":0},0]
["Xzemplar™Fungicide","4 x 11.4 oz",59014120,849.52800000000002,{"$f":"VLOOKUP(C54,'Step 1 - Make Selections'!$C$68:$G$117,3,FALSE)+VLOOKUP(C54,'Step 1 - Make Selections'!$C$68:$G$117,5,FALSE)","v":0},0]
["Admiral Lake Colorant","4x1 gal",59013341,"See Agent for Price",{"$f":"VLOOKUP(C55,'Step 1 - Make Selections'!$C$68:$G$117,3,FALSE)+VLOOKUP(C55,'Step 1 - Make Selections'!$C$68:$G$117,5,FALSE)","v":0},0]
["All Weather Foam Concentrate","4x1 gal",59013451,"See Agent for Price",{"$f":"VLOOKUP(C56,'Step 1 - Make Selections'!$C$68:$G$117,3,FALSE)+VLOOKUP(C56,'Step 1 - Make Selections'!$C$68:$G$117,5,FALSE)","v":0},0]
["Amdro Pro Fire Ant Bait","1 x 25lbs",59021451,"See Agent for Price",{"$f":"VLOOKUP(C57,'Step 1 - Make Selections'!$C$68:$G$117,3,FALSE)+VLOOKUP(C57,'Step 1 - Make Selections'!$C$68:$G$117,5,FALSE)","v":0},0]
["Basagran Herbicide","2x 1 gal",59011636,"See Agent for Price",{"$f":"VLOOKUP(C58,'Step 1 - Make Selections'!$C$68:$G$117,3,FALSE)+VLOOKUP(C58,'Step 1 - Make Selections'!$C$68:$G$117,5,FALSE)","v":0},0]
["Black Onyx","4x1 gal",59013424,"See Agent for Price",{"$f":"VLOOKUP(C59,'Step 1 - Make Selections'!$C$68:$G$117,3,FALSE)+VLOOKUP(C59,'Step 1 - Make Selections'!$C$68:$G$117,5,FALSE)","v":0},0]
["Drive XLR8 Herbicide","4x .5 gal",59011404,"See Agent for Price",{"$f":"VLOOKUP(C60,'Step 1 - Make Selections'!$C$68:$G$117,3,FALSE)+VLOOKUP(C60,'Step 1 - Make Selections'!$C$68:$G$117,5,FALSE)","v":0},0]
["Green Lawnger","4x1 gal",59013434,"See Agent for Price",{"$f":"VLOOKUP(C61,'Step 1 - Make Selections'!$C$68:$G$117,3,FALSE)+VLOOKUP(C61,'Step 1 - Make Selections'!$C$68:$G$117,5,FALSE)","v":0},0]
["Green Lawnger","2x2.5 gal",59013430,"See Agent for Price",{"$f":"VLOOKUP(C62,'Step 1 - Make Selections'!$C$68:$G$117,3,FALSE)+VLOOKUP(C62,'Step 1 - Make Selections'!$C$68:$G$117,5,FALSE)","v":0},0]
["Green Lawnger Transition HC Colorant","4x 1 gal",59013410,"See Agent for Price",{"$f":"VLOOKUP(C63,'Step 1 - Make Selections'!$C$68:$G$117,3,FALSE)+VLOOKUP(C63,'Step 1 - Make Selections'!$C$68:$G$117,5,FALSE)","v":0},0]
["Green Lawnger Turf Colorant","1x 30 gal",59013284,"See Agent for Price",{"$f":"VLOOKUP(C64,'Step 1 - Make Selections'!$C$68:$G$117,3,FALSE)+VLOOKUP(C64,'Step 1 - Make Selections'!$C$68:$G$117,5,FALSE)","v":0},0]
["Green Lawnger Vision Pro","4x1 gal",59013342,"See Agent for Price",{"$f":"VLOOKUP(C65,'Step 1 - Make Selections'!$C$68:$G$117,3,FALSE)+VLOOKUP(C65,'Step 1 - Make Selections'!$C$68:$G$117,5,FALSE)","v":0},0]
["Neutralize Dry","12 x 2 lbs",59013346,"See Agent for Price",{"$f":"VLOOKUP(C66,'Step 1 - Make Selections'!$C$68:$G$117,3,FALSE)+VLOOKUP(C66,'Step 1 - Make Selections'!$C$68:$G$117,5,FALSE)","v":0},0]
["Neutralize Liquid","4 x 1 gal",59014385,"See Agent for Price",{"$f":"VLOOKUP(C67,'Step 1 - Make Selections'!$C$68:$G$117,3,FALSE)+VLOOKUP(C67,'Step 1 - Make Selections'!$C$68:$G$117,5,FALSE)","v":0},0]
["NutroSol Tank Cleaner","12x2 lbs",59013352,"See Agent for Price",{"$f":"VLOOKUP(C68,'Step 1 - Make Selections'!$C$68:$G$117,3,FALSE)+VLOOKUP(C68,'Step 1 - Make Selections'!$C$68:$G$117,5,FALSE)","v":0},0]
["Pendulum 2G","40 lbs bag",59015072,"See Agent for Price",{"$f":"VLOOKUP(C69,'Step 1 - Make Selections'!$C$68:$G$117,3,FALSE)+VLOOKUP(C69,'Step 1 - Make Selections'!$C$68:$G$117,5,FALSE)","v":0},0]
["Pendulum 3.3EC","2x2.5 gal",59015228,"See Agent for Price",{"$f":"VLOOKUP(C70,'Step 1 - Make Selections'!$C$68:$G$117,3,FALSE)+VLOOKUP(C70,'Step 1 - Make Selections'!$C$68:$G$117,5,FALSE)","v":0},0]
["Pendulum Aquacap","2x2.5 gal",59049276,"See Agent for Price",{"$f":"VLOOKUP(C71,'Step 1 - Make Selections'!$C$68:$G$117,3,FALSE)+VLOOKUP(C71,'Step 1 - Make Selections'!$C$68:$G$117,5,FALSE)","v":0},0]
["Pillar G","30 lbs bag",59012784,"See Agent for Price",{"$f":"VLOOKUP(C72,'Step 1 - Make Selections'!$C$68:$G$117,3,FALSE)+VLOOKUP(C72,'Step 1 - Make Selections'!$C$68:$G$117,5,FALSE)","v":0},0]
["Pillar G (New)","15 lbs bag",59017959,"See Agent for Price",{"$f":"VLOOKUP(C73,'Step 1 - Make Selections'!$C$68:$G$117,3,FALSE)+VLOOKUP(C73,'Step 1 - Make Selections'!$C$68:$G$117,5,FALSE)","v":0},0]
["Pylex Herbicide ","4x 8 fl oz",59013624,"See Agent for Price",{"$f":"VLOOKUP(C74,'Step 1 - Make Selections'!$C$68:$G$117,3,FALSE)+VLOOKUP(C74,'Step 1 - Make Selections'!$C$68:$G$117,5,FALSE)","v":0},0]
["Segment II Herbicide","2x 2.5 gal",59014427,"See Agent for Price",{"$f":"VLOOKUP(C75,'Step 1 - Make Selections'!$C$68:$G$117,3,FALSE)+VLOOKUP(C75,'Step 1 - Make Selections'!$C$68:$G$117,5,FALSE)","v":0},0]
["Shakedown Anti Foam","12x 1 qt",59013697,"See Agent for Price",{"$f":"VLOOKUP(C76,'Step 1 - Make Selections'!$C$68:$G$117,3,FALSE)+VLOOKUP(C76,'Step 1 - Make Selections'!$C$68:$G$117,5,FALSE)","v":0},0]
["Siesta Fire Ant Bait","15 lbs",59011057,"See Agent for Price",{"$f":"VLOOKUP(C77,'Step 1 - Make Selections'!$C$68:$G$117,3,FALSE)+VLOOKUP(C77,'Step 1 - Make Selections'!$C$68:$G$117,5,FALSE)","v":0},0]
["Sprint 330 Iron Chelate ","6x5 lbs",59014404,"See Agent for Price",{"$f":"VLOOKUP(C78,'Step 1 - Make Selections'!$C$68:$G$117,3,FALSE)+VLOOKUP(C78,'Step 1 - Make Selections'!$C$68:$G$117,5,FALSE)","v":0},0]
["Sprint 330 Iron Chelate ","1x50 lbs",59014406,"See Agent for Price",{"$f":"VLOOKUP(C79,'Step 1 - Make Selections'!$C$68:$G$117,3,FALSE)+VLOOKUP(C79,'Step 1 - Make Selections'!$C$68:$G$117,5,FALSE)","v":0},0]
["Trinity Fungicide","2x2.5gal",59011038,"See Agent for Price",{"$f":"VLOOKUP(C80,'Step 1 - Make Selections'!$C$68:$G$117,3,FALSE)+VLOOKUP(C80,'Step 1 - Make Selections'!$C$68:$G$117,5,FALSE)","v":0},0]
["Turf Mark","12 x .25 gal",59013723,"See Agent for Price",{"$f":"VLOOKUP(C81,'Step 1 - Make Selections'!$C$68:$G$117,3,FALSE)+VLOOKUP(C81,'Step 1 - Make Selections'!$C$68:$G$117,5,FALSE)","v":0},0]
["Turf Mark","1 x 30 gal",59013314,"See Agent for Price",{"$f":"VLOOKUP(C82,'Step 1 - Make Selections'!$C$68:$G$117,3,FALSE)+VLOOKUP(C82,'Step 1 - Make Selections'!$C$68:$G$117,5,FALSE)","v":0},0]
["Turf Mark Blue","2x 2.5 gal",59013417,"See Agent for Price",{"$f":"VLOOKUP(C83,'Step 1 - Make Selections'!$C$68:$G$117,3,FALSE)+VLOOKUP(C83,'Step 1 - Make Selections'!$C$68:$G$117,5,FALSE)","v":0},0]
["Turf Mark Green","2x 2.5 gal",59013486,"See Agent for Price",{"$f":"VLOOKUP(C84,'Step 1 - Make Selections'!$C$68:$G$117,3,FALSE)+VLOOKUP(C84,'Step 1 - Make Selections'!$C$68:$G$117,5,FALSE)","v":0},0]
[]
["BASF has developed this calculator using formulas that approximate the rebate amount under the 2019 Early Order Program.  The calculator is being shared with you for information purposes only and for your private use in preparing your own calculations. While every effort has been made to ensure the accuracy and reliability of the information and formulas, no guarantee is given nor responsibility taken by BASF for the accuracy of the calculator or the applicability to your particular circumstances.\n\nBASF PROVIDES THIS CALCULATOR AND ANY RESULT THEREFROM AS IS WITH ALL FAULTS AND WITH NO WARRANTY WHATSOEVER, EITHER EXPRESS OR IMPLIED, INCLUDING ANY WARRANTIES OF MERCHANTABILITY AND FITNESS FOR PARTICULAR PURPOSE.  YOU ASSUME ANY AND ALL RISKS IN USING THE CALCULATOR AND RELYING ON THE INFORMATION CONTAINED HEREIN.  IN NO CIRCUMSTANCES SHALL BASF BE LIABLE FOR ANY DAMAGES WHATSOEVER, INCLUDING BUT NOT LIMITED TO LOSS OF PROFIT, LOSS OF BUSINESS, LOSS OF SAVINGS, OR CONSEQUENTIAL DAMAGES, EVEN IF BASF HAS BEEN NOTIFIED AS SUCH."]

{"sheet":"Range Reference","index":3,"n_rows":7,"n_cols":18,"rows_kept":7,"cut":false,"hidden":true,"merged":[[6,2,6,3],[6,9,6,16]]}
[null,null,"Oct","Nov-Dec",null,null,null,null,null,"Article Description","Pkg Size","Art #","Cases","Cov Vol","Rebate","Sales","Rebate $","Rebate Combined $"]
["Low","High","Discount","Discount","Oct Applied","Nov-Dec Applied","Rebate Applied",null,null,"Honor® Intrinsic™ brand Fungicide","6 x 3 lb",59012350,{"$f":"'Step 1 - Make Selections'!E71+'Step 1 - Make Selections'!G71","v":0},{"$f":"M2*18","v":0},{"$f":"IF((N2+N3)>=72,0.12,0)","v":0},{"$f":"'Step 1 - Make Selections'!F71+'Step 1 - Make Selections'!H71","v":0},{"$f":"(P2+P3)*O2","v":0},{"$f":"Q2","v":0}]
[3000,9999,0.04,0.03,{"$f":"IF(AND(('Step 1 - Make Selections'!$F$86+'Step 1 - Make Selections'!$F$118)>=2000,'Step 1 - Make Selections'!$G$16>=$A3,'Step 1 - Make Selections'!$G$16<=$B3),C3)","v":false},{"$f":"IF(AND(('Step 1 - Make Selections'!$F$86+'Step 1 - Make Selections'!$F$118)<2000,'Step 1 - Make Selections'!$G$16>=$A3,'Step 1 - Make Selections'!$G$16<=$B3),D3)","v":false},{"$f":"SUM(E3:F3)","v":0},null,null,"Honor® Intrinsic™ brand Fungicide","1 x 36 lb",59012885,{"$f":"'Step 1 - Make Selections'!E70+'Step 1 - Make Selections'!G70","v":0},{"$f":"36*M3","v":0},null,{"$f":"'Step 1 - Make Selections'!F70+'Step 1 - Make Selections'!H70","v":0}]
[10000,17999,7.0000000000000007E-2,0.05,{"$f":"IF(AND(('Step 1 - Make Selections'!$F$86+'Step 1 - Make Selections'!$F$118)>=2000,'Step 1 - Make Selections'!$G$16>=$A4,'Step 1 - Make Selections'!$G$16<=$B4),C4)","v":false},{"$f":"IF(AND(('Step 1 - Make Selections'!$F$86+'Step 1 - Make Selections'!$F$118)<2000,'Step 1 - Make Selections'!$G$16>=$A4,'Step 1 - Make Selections'!$G$16<=$B4),D4)","v":false},{"$f":"SUM(E4:F4)","v":0},null,null,"Insignia® SC Intrinsic™ brand Fungicide","4 x 30.5 fl oz",59014134,{"$f":"'Step 1 - Make Selections'!E74+'Step 1 - Make Selections'!G74","v":0},{"$f":"(122*0.0078125)*M4","v":0},{"$f":"IF((N4+N5+N6)>=5,0.12,0)","v":0},{"$f":"'Step 1 - Make Selections'!F74+'Step 1 - Make Selections'!H74","v":0},{"$f":"(P4+P5+P6)*O4","v":0},{"$f":"Q4","v":0}]
[18000,34999,0.08,0.06,{"$f":"IF(AND(('Step 1 - Make Selections'!$F$86+'Step 1 - Make Selections'!$F$118)>=2000,'Step 1 - Make Selections'!$G$16>=$A5,'Step 1 - Make Selections'!$G$16<=$B5),C5)","v":false},{"$f":"IF(AND(('Step 1 - Make Selections'!$F$86+'Step 1 - Make Selections'!$F$118)<2000,'Step 1 - Make Selections'!$G$16>=$A5,'Step 1 - Make Selections'!$G$16<=$B5),D5)","v":false},{"$f":"SUM(E5:F5)","v":0},null,null,"Insignia® SC Intrinsic™ brand Fungicide","4 x 122 fl oz",59012450,{"$f":"'Step 1 - Make Selections'!E73+'Step 1 - Make Selections'!G73","v":0},{"$f":"(488*0.0078125)*M5","v":0},null,{"$f":"'Step 1 - Make Selections'!F73+'Step 1 - Make Selections'!H73","v":0}]
[35000,1000000,0.1,0.1,{"$f":"IF(AND(('Step 1 - Make Selections'!$F$86+'Step 1 - Make Selections'!$F$118)>=2000,'Step 1 - Make Selections'!$G$16>=$A6,'Step 1 - Make Selections'!$G$16<=$B6),C6)","v":false},{"$f":"IF(AND(('Step 1 - Make Selections'!$F$86+'Step 1 - Make Selections'!$F$118)<2000,'Step 1 - Make Selections'!$G$16>=$A6,'Step 1 - Make Selections'!$G$16<=$B6),D6)","v":false},{"$f":"SUM(E6:F6)","v":0},null,null,"Insignia® SC Intrinsic™ brand Fungicide","2x 2.5 gal",59012382,{"$f":"'Step 1 - Make Selections'!E72+'Step 1 - Make Selections'!G72","v":0},{"$f":"5*M6","v":0},null,{"$f":"'Step 1 - Make Selections'!F72+'Step 1 - Make Selections'!H72","v":0}]
[null,null,"DISCOUNT",null,{"$f":"SUM(E3:E6)","v":0},{"$f":"SUM(F3:F6)","v":0},{"$f":"SUM(E7:F7)","v":0},null,null,"TOTAL",null,null,null,null,null,null,null,{"$f":"SUM(R4+R2)","v":0}]

{"sheet":"Article Reference","index":4,"n_rows":54,"n_cols":3,"rows_kept":54,"cut":false,"hidden":true,"merged":[]}
["ART","BRAND","PACKAGE"]
[59021463,"Emerald® Fungicide","10 x 0.49 lb"]
[59012825,"Emerald® Fungicide","50 x 0.49 lb"]
[59011296,"FreeHand® Herbicide","1 x 50 lb"]
[59012350,"Honor® Intrinsic™ Brand Fungicide","6 x 3 lb"]
[59012885,"Honor® Intrinsic™ Brand Fungicide","1 x 36 lb"]
[59014134,"Insignia® SC Intrinsic™ Brand Fungicide","4 x 30.5 fl oz"]
[59012450,"Insignia® SC Intrinsic™ Brand Fungicide","4 x 122 fl oz"]
[59014135,"Insignia® SC Intrinsic™ Brand Fungicide","2x 2.5 gal"]
[59013840,"Lexicon® Intrinsic™ Brand Fungicide","4x 21 oz"]
[59014379,"Orkestra™ Intrinsic™ Brand Fungicide","4x 16 oz"]
[59012349,"Pageant® Intrinsic™ Brand Fungicide","4 x 1 lb"]
[59012429,"Pageant® Intrinsic™ Brand Fungicide","4 x 12 lb"]
[59011279,"Pendulum® AquaCap™ Herbicide","1 x 15 gal"]
[59049202,"Pendulum® AquaCap™ Bulk Herbicide","110 gal"]
[59049202,"Pendulum® AquaCap™ Bulk Herbicide","220 gal"]
[59017968,"Pylex Herbicide (New)","4x 4 oz"]
[59014176,"Pylon® Insecticide","2 x 0.5 gal"]
[59014112,"Sultan™ Miticide","4x 0.125 gal"]
[59014247,"Tower® Herbicide","2 x 2.5 gal"]
[59013833,"Xzemplar™ Fungicide","2x 114 oz"]
[59014120,"Xzemplar™Fungicide","4 x 11.4 oz"]
[null,"BASF 2016 EOP Qualifying  Non-Agency Products"]
["Article Number","Qaulifying Non-Agency Products","Package"]
[59013341,"Admiral Lake Colorant","4x1 gal"]
[59013451,"All Weather Foam Concentrate","4x1 gal"]
[59021451,"Amdro Pro Fire Ant Bait","1 x 25lbs"]
[59011636,"Basagran Herbicide","2x 1 gal"]
[59013424,"Black Onyx","4x1 gal"]
[59011404,"Drive XLR8 Herbicide","4x .5 gal"]
[59013434,"Green Lawnger","4x1 gal"]
[59013430,"Green Lawnger","2x2.5 gal"]
[59013410,"Green Lawnger Transition HC Colorant","4x 1 gal"]
[59013284,"Green Lawnger Turf Colorant","1x 30 gal"]
[59013342,"Green Lawnger Vision Pro","4x1 gal"]
[59013346,"Neutralize Dry","12 x 2 lbs"]
[59014385,"Neutralize Liquid","4 x 1 gal"]
[59013352,"NutroSol Tank Cleaner","12x2 lbs"]
[59015072,"Pendulum 2G","40 lbs bag"]
[59015228,"Pendulum 3.3EC","2x2.5 gal"]
[59049276,"Pendulum Aquacap","2x2.5 gal"]
[59012784,"Pillar G","30 lbs bag"]
[59017959,"Pillar G (New)","15 lbs bag"]
[59013624,"Pylex Herbicide ","4x 8 fl oz"]
[59014427,"Segment II Herbicide","2x 2.5 gal"]
[59013697,"Shakedown Anti Foam","12x 1 qt"]
[59011057,"Siesta Fire Ant Bait","15 lbs"]
[59014404,"Sprint 330 Iron Chelate ","6x5 lbs"]
[59014406,"Sprint 330 Iron Chelate ","1x50 lbs"]
[59011038,"Trinity Fungicide","2x2.5gal"]
[59013723,"Turf Mark","12 x .25 gal"]
[59013314,"Turf Mark","1 x 30 gal"]
[59013417,"Turf Mark Blue","2x 2.5 gal"]
[59013486,"Turf Mark Green","2x 2.5 gal"]

{"sheet":"Coverage Reference","index":5,"n_rows":17,"n_cols":7,"rows_kept":17,"cut":false,"hidden":true,"merged":[[1,0,1,1]]}
["Calculator Acreage"]
["Acre Coverage"]
["Product Name","Article #","Package Size","Price/Case","Low Rate","Mid Rate","High rate"]
["Xzemplar",59013833,"2 x 114 oz",null,32.799999999999997,24.95,20]
["Xzemplar",59014120,"4 x 11.4 oz",null,6.6,5,4]
["Emerald",59021463,"10 x .49 lb.",null,13.9,12,10]
["Emerald",59012825,"50 x .49 lb.",null,69.3,60,50]
["Curalan ",59013627,"12 x 2.75 lb.",null,12,12,12]
["Trinity",59011038,"2 x 2.5 gal",null,29.4,18.3,7.3]
["Lexicon",59013840,"4 x 21 oz",null,5.68,4.84,4]
["Honor",59012885,"1 x 36 lb",null,24,18,12]
["Honor",59012350,"6 x 3 lb",null,12,9,6]
["Insignia SC",59014135,"2 x 2.5 gal",null,36.799999999999997,28.9,21]
["Insignia SC",59014134,"4 x 30.5 oz",null,7,5.5,4]
["Insignia SC",59012450,"4 x 122 oz",null,28,22,16]
["Pillar G",59017959,"15 lbs",null,0.11,0.11,0.11]
["Pillar G",59012784,"30 lbs ",null,0.22,0.22,0.22]